Workbook

Sheet Simulation
B9: Select--> | C9: Store 1 | R9: Store 1 | S9: Store 2 | T9: Total
P10: Orders | Q10: Orders Placed | R10: =COUNTIF(Working!$J$16:$J$380,"Yes") -> 41 | S10: =COUNTIF(Working!U16:U380,"Yes") -> 58 | T10: =R10+S10 -> 99
G11: DAY | H11: =Selected_Day -> 1 | Q11: Units Ordered | R11: =SUM(Working!K16:K380) -> 21756 | S11: =SUM(Working!V16:V380) -> 30695 | T11: =R11+S11 -> 52451
P12: Inventory | Q12: Average Inventory (units) | R12: =R13+R14 -> 621.139726 | S12: =S13+S14 -> 693.6219178 | T12: =R12+S12 -> 1314.761644
Q13: Average Stock | R13: =AVERAGE(Working!$G$16:$G$380) -> 263.5068493 | S13: =AVERAGE(Working!R16:R380) -> 273.1424658 | T13: 536.6493151
Q14: Stock in-Transit | R14: =AVERAGE(Working!H16:H380) -> 357.6328767 | S14: =AVERAGE(Working!S16:S380) -> 420.4794521 | T14: 778.1123288
Q15: Inventory Carrying Cost ($) | R15: =R12*InvCarryingCost*ItemCost -> 776.4246575 | S15: =S12*InvCarryingCost*ItemCost -> 867.0273973 | T15: 1643.452055
P16: Transportation | Q16: Transportation Cost | R16: =R10*TCost_Store1 -> 20500 | S16: =S10*TCost_Store2 -> 58000 | T16: 78500
Q17: Vehicle Utilization | R17: =R11/(R10*VehicleCapacity) -> 0.5306341463 | S17: =S11/(S10*VehicleCapacity) -> 0.5292241379 | T17: =T11/(T10*VehicleCapacity) -> 0.5298080808
P18: All the results above are dynamic
P21: All cells in green can be modified
P23: MOQ Policy | S23: Vehicle Capacity
P24: 500 | S24: 1000
P26: Transportation Cost (per trip) | S26: Lead Time (days)
B27: 1 | P27: Store 1 | Q27: Store 2 | S27: Store 1 | T27: Store 2
P28: 500 | Q28: 1000 | S28: 7 | T28: 6
S31: Inventory Carrying Cost
P32: Initial Stock | S32: 0.25
P33: Store 1 | Q33: Store 2
P34: 500 | Q34: 800 | S34: Item Cost
S35: 5
F36: Simulate Day
B37: Previous Day | N37: Next Day
A42: © Copyright Supply Chain Detective. This work is licensed under Creative Commons Attribution-NonCommercial-ShareAlike 4.0 International License. This means that you are free to copy, modify and distribute the derivatives of this work under the same license for non-commercial use only with attribution to the original author. If you wish to use this work for commercial purposes, including training, contact the author for appropriate permissions.

Sheet Demand Profile
B3: Demand Profile
C4: Store 1 | D4: Store 2 | F4: Enter demand (or projected demand) in units by day
B5: Day 1 | C5: 100 | D5: 105
B6: Day 2 | C6: 14 | D6: 46
B7: Day 3 | C7: 83 | D7: 11
B8: Day 4 | C8: 100 | D8: 81
B9: Day 5 | C9: 56 | D9: 31
B10: Day 6 | C10: 81 | D10: 113
B11: Day 7 | C11: 44 | D11: 51
B12: Day 8 | C12: 29 | D12: 126
B13: Day 9 | C13: 100 | D13: 97
B14: Day 10 | C14: 90 | D14: 64
B15: Day 11 | C15: 10 | D15: 94
B16: Day 12 | C16: 2 | D16: 58
B17: Day 13 | C17: 87 | D17: 59
B18: Day 14 | C18: 24 | D18: 30
B19: Day 15 | C19: 31 | D19: 57
B20: Day 16 | C20: 45 | D20: 139
B21: Day 17 | C21: 86 | D21: 128
B22: Day 18 | C22: 20 | D22: 87
B23: Day 19 | C23: 1 | D23: 92
B24: Day 20 | C24: 79 | D24: 135
B25: Day 21 | C25: 84 | D25: 50
B26: Day 22 | C26: 99 | D26: 61
B27: Day 23 | C27: 13 | D27: 87
B28: Day 24 | C28: 16 | D28: 40
B29: Day 25 | C29: 37 | D29: 61
B30: Day 26 | C30: 24 | D30: 83
B31: Day 27 | C31: 97 | D31: 131
B32: Day 28 | C32: 65 | D32: 81
B33: Day 29 | C33: 17 | D33: 55
B34: Day 30 | C34: 2 | D34: 22
B35: Day 31 | C35: 39 | D35: 89
B36: Day 32 | C36: 79 | D36: 22
B37: Day 33 | C37: 70 | D37: 92
B38: Day 34 | C38: 22 | D38: 91
B39: Day 35 | C39: 6 | D39: 114
B40: Day 36 | C40: 72 | D40: 59
B41: Day 37 | C41: 82 | D41: 81
B42: Day 38 | C42: 98 | D42: 29
B43: Day 39 | C43: 63 | D43: 44
B44: Day 40 | C44: 92 | D44: 100
B45: Day 41 | C45: 13 | D45: 59
B46: Day 42 | C46: 19 | D46: 128
B47: Day 43 | C47: 7 | D47: 116
B48: Day 44 | C48: 27 | D48: 60
B49: Day 45 | C49: 53 | D49: 16
B50: Day 46 | C50: 7 | D50: 65
B51: Day 47 | C51: 18 | D51: 85
B52: Day 48 | C52: 3 | D52: 91
B53: Day 49 | C53: 48 | D53: 32
B54: Day 50 | C54: 14 | D54: 66
B55: Day 51 | C55: 96 | D55: 75
B56: Day 52 | C56: 80 | D56: 84
B57: Day 53 | C57: 95 | D57: 132
B58: Day 54 | C58: 26 | D58: 117
B59: Day 55 | C59: 9 | D59: 136
B60: Day 56 | C60: 75 | D60: 42
B61: Day 57 | C61: 65 | D61: 37
B62: Day 58 | C62: 42 | D62: 32
B63: Day 59 | C63: 62 | D63: 107
B64: Day 60 | C64: 64 | D64: 63
B65: Day 61 | C65: 40 | D65: 65
B66: Day 62 | C66: 55 | D66: 53
B67: Day 63 | C67: 52 | D67: 62
B68: Day 64 | C68: 84 | D68: 81
B69: Day 65 | C69: 4 | D69: 44
B70: Day 66 | C70: 60 | D70: 116
B71: Day 67 | C71: 88 | D71: 29
B72: Day 68 | C72: 24 | D72: 139
B73: Day 69 | C73: 30 | D73: 58
B74: Day 70 | C74: 95 | D74: 129
B75: Day 71 | C75: 65 | D75: 85
B76: Day 72 | C76: 33 | D76: 56
B77: Day 73 | C77: 81 | D77: 139
B78: Day 74 | C78: 8 | D78: 70
B79: Day 75 | C79: 5 | D79: 59
B80: Day 76 | C80: 90 | D80: 130
B81: Day 77 | C81: 26 | D81: 76
B82: Day 78 | C82: 55 | D82: 108
B83: Day 79 | C83: 48 | D83: 71
B84: Day 80 | C84: 18 | D84: 65
B85: Day 81 | C85: 83 | D85: 72
B86: Day 82 | C86: 69 | D86: 110
B87: Day 83 | C87: 17 | D87: 133
B88: Day 84 | C88: 43 | D88: 50
B89: Day 85 | C89: 69 | D89: 82
B90: Day 86 | C90: 14 | D90: 36
B91: Day 87 | C91: 95 | D91: 80
B92: Day 88 | C92: 38 | D92: 10
B93: Day 89 | C93: 58 | D93: 67
B94: Day 90 | C94: 77 | D94: 40
B95: Day 91 | C95: 45 | D95: 44
B96: Day 92 | C96: 46 | D96: 63
B97: Day 93 | C97: 76 | D97: 108
B98: Day 94 | C98: 46 | D98: 72
B99: Day 95 | C99: 58 | D99: 108
B100: Day 96 | C100: 59 | D100: 138
B101: Day 97 | C101: 73 | D101: 139
B102: Day 98 | C102: 14 | D102: 112
B103: Day 99 | C103: 5 | D103: 113
B104: Day 100 | C104: 65 | D104: 125
B105: Day 101 | C105: 92 | D105: 136
B106: Day 102 | C106: 9 | D106: 128
B107: Day 103 | C107: 84 | D107: 50
B108: Day 104 | C108: 84 | D108: 123
B109: Day 105 | C109: 52 | D109: 14
B110: Day 106 | C110: 100 | D110: 62
B111: Day 107 | C111: 38 | D111: 115
B112: Day 108 | C112: 15 | D112: 120
B113: Day 109 | C113: 57 | D113: 21
B114: Day 110 | C114: 80 | D114: 103
B115: Day 111 | C115: 24 | D115: 137
B116: Day 112 | C116: 42 | D116: 122
B117: Day 113 | C117: 71 | D117: 33
B118: Day 114 | C118: 82 | D118: 17
B119: Day 115 | C119: 59 | D119: 104
B120: Day 116 | C120: 93 | D120: 130
B121: Day 117 | C121: 94 | D121: 71
B122: Day 118 | C122: 82 | D122: 120
B123: Day 119 | C123: 93 | D123: 70
B124: Day 120 | C124: 96 | D124: 86
B125: Day 121 | C125: 1 | D125: 94
B126: Day 122 | C126: 2 | D126: 91
B127: Day 123 | C127: 18 | D127: 31
B128: Day 124 | C128: 72 | D128: 133
B129: Day 125 | C129: 24 | D129: 121
B130: Day 126 | C130: 49 | D130: 121
B131: Day 127 | C131: 32 | D131: 120
B132: Day 128 | C132: 7 | D132: 27
B133: Day 129 | C133: 35 | D133: 19
B134: Day 130 | C134: 54 | D134: 117
B135: Day 131 | C135: 74 | D135: 107
B136: Day 132 | C136: 40 | D136: 139
B137: Day 133 | C137: 99 | D137: 67
B138: Day 134 | C138: 86 | D138: 130
B139: Day 135 | C139: 26 | D139: 104
B140: Day 136 | C140: 79 | D140: 78
B141: Day 137 | C141: 62 | D141: 115
B142: Day 138 | C142: 92 | D142: 72
B143: Day 139 | C143: 38 | D143: 81
B144: Day 140 | C144: 46 | D144: 86
B145: Day 141 | C145: 64 | D145: 82
B146: Day 142 | C146: 65 | D146: 128
B147: Day 143 | C147: 77 | D147: 123
B148: Day 144 | C148: 99 | D148: 70
B149: Day 145 | C149: 38 | D149: 105
B150: Day 146 | C150: 51 | D150: 126
B151: Day 147 | C151: 50 | D151: 64
B152: Day 148 | C152: 17 | D152: 44
B153: Day 149 | C153: 64 | D153: 82
B154: Day 150 | C154: 15 | D154: 38
B155: Day 151 | C155: 31 | D155: 80
B156: Day 152 | C156: 63 | D156: 97
B157: Day 153 | C157: 22 | D157: 92
B158: Day 154 | C158: 50 | D158: 70
B159: Day 155 | C159: 32 | D159: 94
B160: Day 156 | C160: 49 | D160: 107
B161: Day 157 | C161: 81 | D161: 16
B162: Day 158 | C162: 5 | D162: 118
B163: Day 159 | C163: 87 | D163: 38
B164: Day 160 | C164: 41 | D164: 43
B165: Day 161 | C165: 78 | D165: 42
B166: Day 162 | C166: 44 | D166: 23
B167: Day 163 | C167: 81 | D167: 100
B168: Day 164 | C168: 99 | D168: 90
B169: Day 165 | C169: 28 | D169: 140
B170: Day 166 | C170: 68 | D170: 84
B171: Day 167 | C171: 75 | D171: 34
B172: Day 168 | C172: 15 | D172: 34
B173: Day 169 | C173: 24 | D173: 53
B174: Day 170 | C174: 95 | D174: 44
B175: Day 171 | C175: 95 | D175: 104
B176: Day 172 | C176: 20 | D176: 84
B177: Day 173 | C177: 66 | D177: 106
B178: Day 174 | C178: 87 | D178: 100
B179: Day 175 | C179: 100 | D179: 90
B180: Day 176 | C180: 35 | D180: 23
B181: Day 177 | C181: 19 | D181: 60
B182: Day 178 | C182: 42 | D182: 78
B183: Day 179 | C183: 96 | D183: 74
B184: Day 180 | C184: 73 | D184: 107
B185: Day 181 | C185: 49 | D185: 14
B186: Day 182 | C186: 63 | D186: 30
B187: Day 183 | C187: 89 | D187: 24
B188: Day 184 | C188: 94 | D188: 45
B189: Day 185 | C189: 98 | D189: 87
B190: Day 186 | C190: 69 | D190: 90
B191: Day 187 | C191: 17 | D191: 53
B192: Day 188 | C192: 89 | D192: 77
B193: Day 189 | C193: 40 | D193: 106
B194: Day 190 | C194: 29 | D194: 73
B195: Day 191 | C195: 74 | D195: 25
B196: Day 192 | C196: 42 | D196: 111
B197: Day 193 | C197: 66 | D197: 23
B198: Day 194 | C198: 35 | D198: 21
B199: Day 195 | C199: 48 | D199: 53
B200: Day 196 | C200: 10 | D200: 119
B201: Day 197 | C201: 8 | D201: 92
B202: Day 198 | C202: 32 | D202: 129
... 167 more rows

Sheet Working
B2: 31
B14: Store 1 | M14: Store 2
B15: S.N. | C15: Day | D15: Demand | E15: Opening Stock | F15: Stock Received | G15: Closing Stock | H15: Stock In-Transit | I15: Demand during lead time | J15: Order Placed? | K15: Order Quantity | M15: S.N. | N15: Day | O15: Demand | P15: Opening Stock | Q15: Stock Received | R15: Closing Stock | S15: Stock In-Transit | T15: Demand during lead time | U15: Order Placed? | V15: Order Quantity
B16: 1 | C16: Day 1 | D16: ='Demand Profile'!C5 -> 100 | E16: =InitialStock_Store1 -> 500 | F16: =IF(B16<=LT_Store1,0,OFFSET(K16,-1*LT_Store1,0,1,1)) -> 0 | G16: =E16+F16-D16 -> 400 | H16: =SUM(OFFSET(K16,-1,0,-1*(LT_Store1-1),1)) -> 0 | I16: =SUM(OFFSET(D17,0,0,LT_Store1,1)) -> 407 | J16: =IF(I16<G16+H16,"","Yes") -> Yes | K16: =IF(J16="Yes",MAX(I16-G16,MOQ),0) -> 500 | M16: 1 | N16: Day 1 | O16: ='Demand Profile'!D5 -> 105 | P16: =InitialStock_Store2 -> 800 | Q16: =IF(M16<=LT_Store2,0,OFFSET(V16,-1*LT_Store2,0,1,1)) -> 0 | R16: =P16+Q16-O16 -> 695 | S16: =SUM(OFFSET(V16,-1,0,-1*(LT_Store2-1),1)) -> 0 | T16: =SUM(OFFSET(O17,0,0,LT_Store2,1)) -> 333 | U16: =IF(T16<R16+S16,"","Yes") ->  | V16: =IF(U16="Yes",MAX(T16-R16,MOQ),0) -> 0
B17: 2 | C17: Day 2 | D17: ='Demand Profile'!C6 -> 14 | E17: =G16 -> 400 | F17: 0 | G17: =E17+F17-D17 -> 386 | H17: 500 | I17: 493 | J17: =IF(I17<G17+H17,"","Yes") ->  | K17: 0 | M17: 2 | N17: Day 2 | O17: ='Demand Profile'!D6 -> 46 | P17: =R16 -> 695 | Q17: 0 | R17: =P17+Q17-O17 -> 649 | S17: 0 | T17: 413 | U17: =IF(T17<R17+S17,"","Yes") ->  | V17: 0
B18: 3 | C18: Day 3 | D18: ='Demand Profile'!C7 -> 83 | E18: =G17 -> 386 | F18: 0 | G18: 303 | H18: 500 | I18: 500 | K18: 0 | M18: 3 | N18: Day 3 | O18: ='Demand Profile'!D7 -> 11 | P18: =R17 -> 649 | Q18: 0 | R18: 638 | S18: 0 | T18: 499 | V18: 0
B19: 4 | C19: Day 4 | D19: ='Demand Profile'!C8 -> 100 | E19: 303 | F19: 0 | G19: 203 | H19: 500 | I19: 410 | K19: 0 | M19: 4 | N19: Day 4 | O19: ='Demand Profile'!D8 -> 81 | P19: 638 | Q19: 0 | R19: 557 | S19: 0 | T19: 482 | V19: 0
B20: 5 | C20: Day 5 | D20: ='Demand Profile'!C9 -> 56 | E20: 203 | F20: 0 | G20: 147 | H20: 500 | I20: 356 | K20: 0 | M20: 5 | N20: Day 5 | O20: ='Demand Profile'!D9 -> 31 | P20: 557 | Q20: 0 | R20: =P20+Q20-O20 -> 526 | S20: 0 | T20: 545 | U20: =IF(T20<R20+S20,"","Yes") -> Yes | V20: 500
B21: 6 | C21: Day 6 | D21: ='Demand Profile'!C10 -> 81 | E21: 147 | F21: 0 | G21: 66 | H21: 500 | I21: 362 | K21: 0 | M21: 6 | N21: Day 6 | O21: ='Demand Profile'!D10 -> 113 | P21: 526 | Q21: 0 | R21: 413 | S21: 500 | T21: 490 | V21: 0
B22: 7 | C22: Day 7 | D22: ='Demand Profile'!C11 -> 44 | E22: 66 | F22: 0 | G22: 22 | H22: 500 | I22: 342 | K22: 0 | M22: 7 | N22: Day 7 | O22: ='Demand Profile'!D11 -> 51 | P22: 413 | Q22: 0 | R22: 362 | S22: 500 | T22: 498 | V22: 0
B23: 8 | C23: Day 8 | D23: ='Demand Profile'!C12 -> 29 | E23: 22 | F23: 500 | G23: 493 | H23: 0 | I23: 344 | K23: 0 | M23: 8 | N23: Day 8 | O23: ='Demand Profile'!D12 -> 126 | P23: 362 | Q23: 0 | R23: 236 | S23: 500 | T23: 402 | V23: 0
B24: 9 | C24: Day 9 | D24: ='Demand Profile'!C13 -> 100 | E24: 493 | F24: 0 | G24: 393 | H24: 0 | I24: 289 | K24: 0 | M24: 9 | N24: Day 9 | O24: ='Demand Profile'!D13 -> 97 | P24: 236 | Q24: 0 | R24: 139 | S24: 500 | T24: 362 | V24: 0
B25: 10 | C25: Day 10 | D25: ='Demand Profile'!C14 -> 90 | E25: 393 | F25: 0 | G25: 303 | H25: 0 | I25: 285 | K25: 0 | M25: 10 | N25: Day 10 | O25: ='Demand Profile'!D14 -> 64 | P25: 139 | Q25: 0 | R25: 75 | S25: 500 | T25: 437 | V25: 0
B26: 11 | C26: Day 11 | D26: ='Demand Profile'!C15 -> 10 | E26: 303 | F26: 0 | G26: 293 | H26: 0 | I26: 295 | J26: Yes | K26: 500 | M26: 11 | N26: Day 11 | O26: ='Demand Profile'!D15 -> 94 | P26: 75 | Q26: 500 | R26: 481 | S26: 0 | T26: 471 | V26: 0
B27: 12 | C27: Day 12 | D27: ='Demand Profile'!C16 -> 2 | E27: 293 | F27: 0 | G27: 291 | H27: 500 | I27: 294 | K27: 0 | M27: 12 | N27: Day 12 | O27: ='Demand Profile'!D16 -> 58 | P27: 481 | Q27: 0 | R27: 423 | S27: 0 | T27: 500 | U27: Yes | V27: 500
B28: 13 | C28: Day 13 | D28: ='Demand Profile'!C17 -> 87 | E28: 291 | F28: 0 | G28: 204 | H28: 500 | I28: 286 | K28: 0 | M28: 13 | N28: Day 13 | O28: ='Demand Profile'!D17 -> 59 | P28: 423 | Q28: 0 | R28: 364 | S28: 500 | T28: 533 | V28: 0
B29: 14 | C29: Day 14 | D29: ='Demand Profile'!C18 -> 24 | E29: 204 | F29: 0 | G29: 180 | H29: 500 | I29: 346 | K29: 0 | M29: 14 | N29: Day 14 | O29: ='Demand Profile'!D18 -> 30 | P29: 364 | Q29: 0 | R29: 334 | S29: 500 | T29: 638 | V29: 0
B30: 15 | C30: Day 15 | D30: ='Demand Profile'!C19 -> 31 | E30: 180 | F30: 0 | G30: 149 | H30: 500 | I30: 414 | K30: 0 | M30: 15 | N30: Day 15 | O30: ='Demand Profile'!D19 -> 57 | P30: 334 | Q30: 0 | R30: 277 | S30: 500 | T30: 631 | V30: 0
B31: 16 | C31: Day 16 | D31: ='Demand Profile'!C20 -> 45 | E31: 149 | F31: 0 | G31: 104 | H31: 500 | I31: 382 | K31: 0 | M31: 16 | N31: Day 16 | O31: ='Demand Profile'!D20 -> 139 | P31: 277 | Q31: 0 | R31: 138 | S31: 500 | T31: 553 | V31: 0
B32: 17 | C32: Day 17 | D32: ='Demand Profile'!C21 -> 86 | E32: 104 | F32: 0 | G32: 18 | H32: 500 | I32: 312 | K32: 0 | M32: 17 | N32: Day 17 | O32: ='Demand Profile'!D21 -> 128 | P32: 138 | Q32: 0 | R32: 10 | S32: 500 | T32: 512 | U32: Yes | V32: 502
B33: 18 | C33: Day 18 | D33: ='Demand Profile'!C22 -> 20 | E33: 18 | F33: 500 | G33: 498 | H33: 0 | I33: 329 | K33: 0 | M33: 18 | N33: Day 18 | O33: ='Demand Profile'!D22 -> 87 | P33: 10 | Q33: 500 | R33: 423 | S33: 502 | T33: 465 | V33: 0
B34: 19 | C34: Day 19 | D34: ='Demand Profile'!C23 -> 1 | E34: 498 | F34: 0 | G34: 497 | H34: 0 | I34: 352 | K34: 0 | M34: 19 | N34: Day 19 | O34: ='Demand Profile'!D23 -> 92 | P34: 423 | Q34: 0 | R34: 331 | S34: 502 | T34: 434 | V34: 0
B35: 20 | C35: Day 20 | D35: ='Demand Profile'!C24 -> 79 | E35: 497 | F35: 0 | G35: 418 | H35: 0 | I35: 370 | K35: 0 | M35: 20 | N35: Day 20 | O35: ='Demand Profile'!D24 -> 135 | P35: 331 | Q35: 0 | R35: 196 | S35: 502 | T35: 382 | V35: 0
B36: 21 | C36: Day 21 | D36: ='Demand Profile'!C25 -> 84 | E36: 418 | F36: 0 | G36: 334 | H36: 0 | I36: 351 | J36: Yes | K36: 500 | M36: 21 | N36: Day 21 | O36: ='Demand Profile'!D25 -> 50 | P36: 196 | Q36: 0 | R36: 146 | S36: 502 | T36: 463 | V36: 0
B37: 22 | C37: Day 22 | D37: ='Demand Profile'!C26 -> 99 | E37: 334 | F37: 0 | G37: 235 | H37: 500 | I37: 269 | K37: 0 | M37: 22 | N37: Day 22 | O37: ='Demand Profile'!D26 -> 61 | P37: 146 | Q37: 0 | R37: 85 | S37: 502 | T37: 483 | V37: 0
B38: 23 | C38: Day 23 | D38: ='Demand Profile'!C27 -> 13 | E38: 235 | F38: 0 | G38: 222 | H38: 500 | I38: 258 | K38: 0 | M38: 23 | N38: Day 23 | O38: ='Demand Profile'!D27 -> 87 | P38: 85 | Q38: 502 | R38: 500 | S38: 0 | T38: 451 | V38: 0
B39: 24 | C39: Day 24 | D39: ='Demand Profile'!C28 -> 16 | E39: 222 | F39: 0 | G39: 206 | H39: 500 | I39: 281 | K39: 0 | M39: 24 | N39: Day 24 | O39: ='Demand Profile'!D28 -> 40 | P39: 500 | Q39: 0 | R39: 460 | S39: 0 | T39: 433 | V39: 0
B40: 25 | C40: Day 25 | D40: ='Demand Profile'!C29 -> 37 | E40: 206 | F40: 0 | G40: 169 | H40: 500 | I40: 323 | K40: 0 | M40: 25 | N40: Day 25 | O40: ='Demand Profile'!D29 -> 61 | P40: 460 | Q40: 0 | R40: 399 | S40: 0 | T40: 461 | U40: Yes | V40: 500
B41: 26 | C41: Day 26 | D41: ='Demand Profile'!C30 -> 24 | E41: 169 | F41: 0 | G41: 145 | H41: 500 | I41: 369 | K41: 0 | M41: 26 | N41: Day 26 | O41: ='Demand Profile'!D30 -> 83 | P41: 399 | Q41: 0 | R41: 316 | S41: 500 | T41: 400 | V41: 0
B42: 27 | C42: Day 27 | D42: ='Demand Profile'!C31 -> 97 | E42: 145 | F42: 0 | G42: 48 | H42: 500 | I42: 294 | K42: 0 | M42: 27 | N42: Day 27 | O42: ='Demand Profile'!D31 -> 131 | P42: 316 | Q42: 0 | R42: 185 | S42: 500 | T42: 361 | V42: 0
B43: 28 | C43: Day 28 | D43: ='Demand Profile'!C32 -> 65 | E43: 48 | F43: 500 | G43: 483 | H43: 0 | I43: 235 | K43: 0 | M43: 28 | N43: Day 28 | O43: ='Demand Profile'!D32 -> 81 | P43: 185 | Q43: 0 | R43: 104 | S43: 500 | T43: 371 | V43: 0
B44: 29 | C44: Day 29 | D44: ='Demand Profile'!C33 -> 17 | E44: 483 | F44: 0 | G44: 466 | H44: 0 | I44: 290 | K44: 0 | M44: 29 | N44: Day 29 | O44: ='Demand Profile'!D33 -> 55 | P44: 104 | Q44: 0 | R44: 49 | S44: 500 | T44: 430 | V44: 0
B45: 30 | C45: Day 30 | D45: ='Demand Profile'!C34 -> 2 | E45: 466 | F45: 0 | G45: 464 | H45: 0 | I45: 370 | K45: 0 | M45: 30 | N45: Day 30 | O45: ='Demand Profile'!D34 -> 22 | P45: 49 | Q45: 0 | R45: 27 | S45: 500 | T45: 467 | V45: 0
B46: 31 | C46: Day 31 | D46: ='Demand Profile'!C35 -> 39 | E46: 464 | F46: 0 | G46: 425 | H46: 0 | I46: 429 | J46: Yes | K46: 500 | M46: 31 | N46: Day 31 | O46: ='Demand Profile'!D35 -> 89 | P46: 27 | Q46: 500 | R46: 438 | S46: 0 | T46: 459 | U46: Yes | V46: 500
B47: 32 | C47: Day 32 | D47: ='Demand Profile'!C36 -> 79 | E47: 425 | F47: 0 | G47: 346 | H47: 500 | I47: 413 | K47: 0 | M47: 32 | N47: Day 32 | O47: ='Demand Profile'!D36 -> 22 | P47: 438 | Q47: 0 | R47: 416 | S47: 500 | T47: 466 | V47: 0
B48: 33 | C48: Day 33 | D48: ='Demand Profile'!C37 -> 70 | E48: 346 | F48: 0 | G48: 276 | H48: 500 | I48: 435 | K48: 0 | M48: 33 | N48: Day 33 | O48: ='Demand Profile'!D37 -> 92 | P48: 416 | Q48: 0 | R48: 324 | S48: 500 | T48: 418 | V48: 0
B49: 34 | C49: Day 34 | D49: ='Demand Profile'!C38 -> 22 | E49: 276 | F49: 0 | G49: 254 | H49: 500 | I49: 426 | K49: 0 | M49: 34 | N49: Day 34 | O49: ='Demand Profile'!D38 -> 91 | P49: 324 | Q49: 0 | R49: 233 | S49: 500 | T49: 427 | V49: 0
B50: 35 | C50: Day 35 | D50: ='Demand Profile'!C39 -> 6 | E50: 254 | F50: 0 | G50: 248 | H50: 500 | I50: 439 | K50: 0 | M50: 35 | N50: Day 35 | O50: ='Demand Profile'!D39 -> 114 | P50: 233 | Q50: 0 | R50: 119 | S50: 500 | T50: 372 | V50: 0
B51: 36 | C51: Day 36 | D51: ='Demand Profile'!C40 -> 72 | E51: 248 | F51: 0 | G51: 176 | H51: 500 | I51: 374 | K51: 0 | M51: 36 | N51: Day 36 | O51: ='Demand Profile'!D40 -> 59 | P51: 119 | Q51: 0 | R51: 60 | S51: 500 | T51: 441 | V51: 0
B52: 37 | C52: Day 37 | D52: ='Demand Profile'!C41 -> 82 | E52: 176 | F52: 0 | G52: 94 | H52: 500 | I52: 319 | K52: 0 | M52: 37 | N52: Day 37 | O52: ='Demand Profile'!D41 -> 81 | P52: 60 | Q52: 500 | R52: 479 | S52: 0 | T52: 476 | V52: 0
B53: 38 | C53: Day 38 | D53: ='Demand Profile'!C42 -> 98 | E53: 94 | F53: 500 | G53: 496 | H53: 0 | I53: 274 | K53: 0 | M53: 38 | N53: Day 38 | O53: ='Demand Profile'!D42 -> 29 | P53: 479 | Q53: 0 | R53: 450 | S53: 0 | T53: 507 | U53: Yes | V53: 500
B54: 39 | C54: Day 39 | D54: ='Demand Profile'!C43 -> 63 | E54: 496 | F54: 0 | G54: 433 | H54: 0 | I54: 218 | K54: 0 | M54: 39 | N54: Day 39 | O54: ='Demand Profile'!D43 -> 44 | P54: 450 | Q54: 0 | R54: 406 | S54: 500 | T54: 479 | V54: 0
B55: 40 | C55: Day 40 | D55: ='Demand Profile'!C44 -> 92 | E55: 433 | F55: 0 | G55: 341 | H55: 0 | I55: 144 | K55: 0 | M55: 40 | N55: Day 40 | O55: ='Demand Profile'!D44 -> 100 | P55: 406 | Q55: 0 | R55: 306 | S55: 500 | T55: 444 | V55: 0
B56: 41 | C56: Day 41 | D56: ='Demand Profile'!C45 -> 13 | E56: 341 | F56: 0 | G56: 328 | H56: 0 | I56: 134 | K56: 0 | M56: 41 | N56: Day 41 | O56: ='Demand Profile'!D45 -> 59 | P56: 306 | Q56: 0 | R56: 247 | S56: 500 | T56: 470 | V56: 0
B57: 42 | C57: Day 42 | D57: ='Demand Profile'!C46 -> 19 | E57: 328 | F57: 0 | G57: 309 | H57: 0 | I57: 163 | K57: 0 | M57: 42 | N57: Day 42 | O57: ='Demand Profile'!D46 -> 128 | P57: 247 | Q57: 0 | R57: 119 | S57: 500 | T57: 433 | V57: 0
B58: 43 | C58: Day 43 | D58: ='Demand Profile'!C47 -> 7 | E58: 309 | F58: 0 | G58: 302 | H58: 0 | I58: 170 | K58: 0 | M58: 43 | N58: Day 43 | O58: ='Demand Profile'!D47 -> 116 | P58: 119 | Q58: 0 | R58: 3 | S58: 500 | T58: 349 | V58: 0
B59: 44 | C59: Day 44 | D59: ='Demand Profile'!C48 -> 27 | E59: 302 | F59: 0 | G59: 275 | H59: 0 | I59: 239 | K59: 0 | M59: 44 | N59: Day 44 | O59: ='Demand Profile'!D48 -> 60 | P59: 3 | Q59: 500 | R59: 443 | S59: 0 | T59: 355 | V59: 0
B60: 45 | C60: Day 45 | D60: ='Demand Profile'!C49 -> 53 | E60: 275 | F60: 0 | G60: 222 | H60: 0 | I60: 266 | J60: Yes | K60: 500 | M60: 45 | N60: Day 45 | O60: ='Demand Profile'!D49 -> 16 | P60: 443 | Q60: 0 | R60: 427 | S60: 0 | T60: 414 | V60: 0
B61: 46 | C61: Day 46 | D61: ='Demand Profile'!C50 -> 7 | E61: 222 | F61: 0 | G61: 215 | H61: 500 | I61: 354 | K61: 0 | M61: 46 | N61: Day 46 | O61: ='Demand Profile'!D50 -> 65 | P61: 427 | Q61: 0 | R61: 362 | S61: 0 | T61: 433 | U61: Yes | V61: 500
B62: 47 | C62: Day 47 | D62: ='Demand Profile'!C51 -> 18 | E62: 215 | F62: 0 | G62: 197 | H62: 500 | I62: 362 | K62: 0 | M62: 47 | N62: Day 47 | O62: ='Demand Profile'!D51 -> 85 | P62: 362 | Q62: 0 | R62: 277 | S62: 500 | T62: 480 | V62: 0
B63: 48 | C63: Day 48 | D63: ='Demand Profile'!C52 -> 3 | E63: 197 | F63: 0 | G63: 194 | H63: 500 | I63: 368 | K63: 0 | M63: 48 | N63: Day 48 | O63: ='Demand Profile'!D52 -> 91 | P63: 277 | Q63: 0 | R63: 186 | S63: 500 | T63: 506 | V63: 0
B64: 49 | C64: Day 49 | D64: ='Demand Profile'!C53 -> 48 | E64: 194 | F64: 0 | G64: 146 | H64: 500 | I64: 395 | K64: 0 | M64: 49 | N64: Day 49 | O64: ='Demand Profile'!D53 -> 32 | P64: 186 | Q64: 0 | R64: 154 | S64: 500 | T64: 610 | V64: 0
B65: 50 | C65: Day 50 | D65: ='Demand Profile'!C54 -> 14 | E65: 146 | F65: 0 | G65: 132 | H65: 500 | I65: 446 | K65: 0 | M65: 50 | N65: Day 50 | O65: ='Demand Profile'!D54 -> 66 | P65: 154 | Q65: 0 | R65: 88 | S65: 500 | T65: 586 | V65: 0
B66: 51 | C66: Day 51 | D66: ='Demand Profile'!C55 -> 96 | E66: 132 | F66: 0 | G66: 36 | H66: 500 | I66: 392 | K66: 0 | M66: 51 | N66: Day 51 | O66: ='Demand Profile'!D55 -> 75 | P66: 88 | Q66: 0 | R66: 13 | S66: 500 | T66: 548 | U66: Yes | V66: 535
B67: 52 | C67: Day 52 | D67: ='Demand Profile'!C56 -> 80 | E67: 36 | F67: 500 | G67: 456 | H67: 0 | I67: 374 | K67: 0 | M67: 52 | N67: Day 52 | O67: ='Demand Profile'!D56 -> 84 | P67: 13 | Q67: 500 | R67: 429 | S67: 535 | T67: 496 | V67: 0
B68: 53 | C68: Day 53 | D68: ='Demand Profile'!C57 -> 95 | E68: 456 | F68: 0 | G68: 361 | H68: 0 | I68: 343 | K68: 0 | M68: 53 | N68: Day 53 | O68: ='Demand Profile'!D57 -> 132 | P68: 429 | Q68: 0 | R68: 297 | S68: 535 | T68: 471 | V68: 0
B69: 54 | C69: Day 54 | D69: ='Demand Profile'!C58 -> 26 | E69: 361 | F69: 0 | G69: 335 | H69: 0 | I69: 357 | J69: Yes | K69: 500 | M69: 54 | N69: Day 54 | O69: ='Demand Profile'!D58 -> 117 | P69: 297 | Q69: 0 | R69: 180 | S69: 535 | T69: 417 | V69: 0
B70: 55 | C70: Day 55 | D70: ='Demand Profile'!C59 -> 9 | E70: 335 | F70: 0 | G70: 326 | H70: 500 | I70: 403 | K70: 0 | M70: 55 | N70: Day 55 | O70: ='Demand Profile'!D59 -> 136 | P70: 180 | Q70: 0 | R70: 44 | S70: 535 | T70: 346 | V70: 0
B71: 56 | C71: Day 56 | D71: ='Demand Profile'!C60 -> 75 | E71: 326 | F71: 0 | G71: 251 | H71: 500 | I71: 380 | K71: 0 | M71: 56 | N71: Day 56 | O71: ='Demand Profile'!D60 -> 42 | P71: 44 | Q71: 0 | R71: 2 | S71: 535 | T71: 357 | V71: 0
B72: 57 | C72: Day 57 | D72: ='Demand Profile'!C61 -> 65 | E72: 251 | F72: 0 | G72: 186 | H72: 500 | I72: 399 | K72: 0 | M72: 57 | N72: Day 57 | O72: ='Demand Profile'!D61 -> 37 | P72: 2 | Q72: 535 | R72: 500 | S72: 0 | T72: 382 | V72: 0
B73: 58 | C73: Day 58 | D73: ='Demand Profile'!C62 -> 42 | E73: 186 | F73: 0 | G73: 144 | H73: 500 | I73: 361 | K73: 0 | M73: 58 | N73: Day 58 | O73: ='Demand Profile'!D62 -> 32 | P73: 500 | Q73: 0 | R73: 468 | S73: 0 | T73: 431 | V73: 0
B74: 59 | C74: Day 59 | D74: ='Demand Profile'!C63 -> 62 | E74: 144 | F74: 0 | G74: 82 | H74: 500 | I74: 359 | K74: 0 | M74: 59 | N74: Day 59 | O74: ='Demand Profile'!D63 -> 107 | P74: 468 | Q74: 0 | R74: 361 | S74: 0 | T74: 368 | U74: Yes | V74: 500
B75: 60 | C75: Day 60 | D75: ='Demand Profile'!C64 -> 64 | E75: 82 | F75: 0 | G75: 18 | H75: 500 | I75: 383 | K75: 0 | M75: 60 | N75: Day 60 | O75: ='Demand Profile'!D64 -> 63 | P75: 361 | Q75: 0 | R75: 298 | S75: 500 | T75: 421 | V75: 0
B76: 61 | C76: Day 61 | D76: ='Demand Profile'!C65 -> 40 | E76: 18 | F76: 500 | G76: 478 | H76: 0 | I76: 367 | K76: 0 | M76: 61 | N76: Day 61 | O76: ='Demand Profile'!D65 -> 65 | P76: 298 | Q76: 0 | R76: 233 | S76: 500 | T76: 385 | V76: 0
B77: 62 | C77: Day 62 | D77: ='Demand Profile'!C66 -> 55 | E77: 478 | F77: 0 | G77: 423 | H77: 0 | I77: 342 | K77: 0 | M77: 62 | N77: Day 62 | O77: ='Demand Profile'!D66 -> 53 | P77: 233 | Q77: 0 | R77: 180 | S77: 500 | T77: 471 | V77: 0
B78: 63 | C78: Day 63 | D78: ='Demand Profile'!C67 -> 52 | E78: 423 | F78: 0 | G78: 371 | H78: 0 | I78: 385 | J78: Yes | K78: 500 | M78: 63 | N78: Day 63 | O78: ='Demand Profile'!D67 -> 62 | P78: 180 | Q78: 0 | R78: 118 | S78: 500 | T78: 467 | V78: 0
B79: 64 | C79: Day 64 | D79: ='Demand Profile'!C68 -> 84 | E79: 371 | F79: 0 | G79: 287 | H79: 500 | I79: 366 | K79: 0 | M79: 64 | N79: Day 64 | O79: ='Demand Profile'!D68 -> 81 | P79: 118 | Q79: 0 | R79: 37 | S79: 500 | T79: 515 | V79: 0
B80: 65 | C80: Day 65 | D80: ='Demand Profile'!C69 -> 4 | E80: 287 | F80: =IF(B80<=LT_Store1,0,OFFSET(K80,-1*LT_Store1,0,1,1)) -> 0 | G80: 283 | H80: =SUM(OFFSET(K80,-1,0,-1*(LT_Store1-1),1)) -> 500 | I80: =SUM(OFFSET(D81,0,0,LT_Store1,1)) -> 395 | K80: =IF(J80="Yes",MAX(I80-G80,MOQ),0) -> 0 | M80: 65 | N80: Day 65 | O80: ='Demand Profile'!D69 -> 44 | P80: 37 | Q80: =IF(M80<=LT_Store2,0,OFFSET(V80,-1*LT_Store2,0,1,1)) -> 500 | R80: 493 | S80: =SUM(OFFSET(V80,-1,0,-1*(LT_Store2-1),1)) -> 0 | T80: =SUM(OFFSET(O81,0,0,LT_Store2,1)) -> 556 | U80: Yes | V80: =IF(U80="Yes",MAX(T80-R80,MOQ),0) -> 500
B81: 66 | C81: Day 66 | D81: ='Demand Profile'!C70 -> 60 | E81: 283 | F81: 0 | G81: =E81+F81-D81 -> 223 | H81: 500 | I81: 416 | J81: =IF(I81<G81+H81,"","Yes") ->  | K81: 0 | M81: 66 | N81: Day 66 | O81: ='Demand Profile'!D70 -> 116 | P81: 493 | Q81: 0 | R81: 377 | S81: 500 | T81: 496 | V81: 0
B82: 67 | C82: Day 67 | D82: ='Demand Profile'!C71 -> 88 | E82: =G81 -> 223 | F82: 0 | G82: 135 | H82: 500 | I82: 336 | K82: 0 | M82: 67 | N82: Day 67 | O82: ='Demand Profile'!D71 -> 29 | P82: =R81 -> 377 | Q82: 0 | R82: 348 | S82: 500 | T82: 606 | V82: 0
B83: 68 | C83: Day 68 | D83: ='Demand Profile'!C72 -> 24 | E83: 135 | F83: 0 | G83: 111 | H83: 500 | I83: 317 | K83: 0 | M83: 68 | N83: Day 68 | O83: ='Demand Profile'!D72 -> 139 | P83: 348 | Q83: 0 | R83: 209 | S83: 500 | T83: 537 | V83: 0
B84: 69 | C84: Day 69 | D84: ='Demand Profile'!C73 -> 30 | E84: 111 | F84: 0 | G84: 81 | H84: 500 | I84: 377 | K84: 0 | M84: 69 | N84: Day 69 | O84: ='Demand Profile'!D73 -> 58 | P84: 209 | Q84: 0 | R84: =P84+Q84-O84 -> 151 | S84: 500 | T84: 538 | U84: =IF(T84<R84+S84,"","Yes") ->  | V84: 0
B85: 70 | C85: Day 70 | D85: ='Demand Profile'!C74 -> 95 | E85: 81 | F85: 500 | G85: 486 | H85: 0 | I85: 308 | K85: 0 | M85: 70 | N85: Day 70 | O85: ='Demand Profile'!D74 -> 129 | P85: 151 | Q85: 0 | R85: 22 | S85: 500 | T85: 539 | U85: Yes | V85: 517
B86: 71 | C86: Day 71 | D86: ='Demand Profile'!C75 -> 65 | E86: 486 | F86: 0 | G86: 421 | H86: 0 | I86: 298 | K86: 0 | M86: 71 | N86: Day 71 | O86: ='Demand Profile'!D75 -> 85 | P86: 22 | Q86: 500 | R86: 437 | S86: 517 | T86: 530 | V86: 0
B87: 72 | C87: Day 72 | D87: ='Demand Profile'!C76 -> 33 | E87: 421 | F87: 0 | G87: 388 | H87: 0 | I87: 313 | K87: 0 | M87: 72 | N87: Day 72 | O87: ='Demand Profile'!D76 -> 56 | P87: 437 | Q87: 0 | R87: 381 | S87: 517 | T87: 582 | V87: 0
B88: 73 | C88: Day 73 | D88: ='Demand Profile'!C77 -> 81 | E88: 388 | F88: 0 | G88: 307 | H88: 0 | I88: 250 | K88: 0 | M88: 73 | N88: Day 73 | O88: ='Demand Profile'!D77 -> 139 | P88: 381 | Q88: 0 | R88: 242 | S88: 517 | T88: 514 | V88: 0
B89: 74 | C89: Day 74 | D89: ='Demand Profile'!C78 -> 8 | E89: 307 | F89: 0 | G89: 299 | H89: 0 | I89: 325 | J89: Yes | K89: 500 | M89: 74 | N89: Day 74 | O89: ='Demand Profile'!D78 -> 70 | P89: 242 | Q89: 0 | R89: 172 | S89: 517 | T89: 509 | V89: 0
B90: 75 | C90: Day 75 | D90: ='Demand Profile'!C79 -> 5 | E90: 299 | F90: 0 | G90: 294 | H90: 500 | I90: 389 | K90: 0 | M90: 75 | N90: Day 75 | O90: ='Demand Profile'!D79 -> 59 | P90: 172 | Q90: 0 | R90: 113 | S90: 517 | T90: 522 | V90: 0
B91: 76 | C91: Day 76 | D91: ='Demand Profile'!C80 -> 90 | E91: 294 | F91: 0 | G91: 204 | H91: 500 | I91: 316 | K91: 0 | M91: 76 | N91: Day 76 | O91: ='Demand Profile'!D80 -> 130 | P91: 113 | Q91: 517 | R91: 500 | S91: 0 | T91: 502 | U91: Yes | V91: 500
B92: 77 | C92: Day 77 | D92: ='Demand Profile'!C81 -> 26 | E92: 204 | F92: 0 | G92: 178 | H92: 500 | I92: 333 | K92: 0 | M92: 77 | N92: Day 77 | O92: ='Demand Profile'!D81 -> 76 | P92: 500 | Q92: 0 | R92: 424 | S92: 500 | T92: 559 | V92: 0
B93: 78 | C93: Day 78 | D93: ='Demand Profile'!C82 -> 55 | E93: 178 | F93: 0 | G93: 123 | H93: 500 | I93: 347 | K93: 0 | M93: 78 | N93: Day 78 | O93: ='Demand Profile'!D82 -> 108 | P93: 424 | Q93: 0 | R93: 316 | S93: 500 | T93: 501 | V93: 0
B94: 79 | C94: Day 79 | D94: ='Demand Profile'!C83 -> 48 | E94: 123 | F94: 0 | G94: 75 | H94: 500 | I94: 313 | K94: 0 | M94: 79 | N94: Day 79 | O94: ='Demand Profile'!D83 -> 71 | P94: 316 | Q94: 0 | R94: 245 | S94: 500 | T94: 512 | V94: 0
B95: 80 | C95: Day 80 | D95: ='Demand Profile'!C84 -> 18 | E95: 75 | F95: 0 | G95: 57 | H95: 500 | I95: 390 | K95: 0 | M95: 80 | N95: Day 80 | O95: ='Demand Profile'!D84 -> 65 | P95: 245 | Q95: 0 | R95: 180 | S95: 500 | T95: 483 | V95: 0
B96: 81 | C96: Day 81 | D96: ='Demand Profile'!C85 -> 83 | E96: 57 | F96: 500 | G96: 474 | H96: 0 | I96: 345 | K96: 0 | M96: 81 | N96: Day 81 | O96: ='Demand Profile'!D85 -> 72 | P96: 180 | Q96: 0 | R96: 108 | S96: 500 | T96: 491 | V96: 0
B97: 82 | C97: Day 82 | D97: ='Demand Profile'!C86 -> 69 | E97: 474 | F97: 0 | G97: 405 | H97: 0 | I97: 334 | K97: 0 | M97: 82 | N97: Day 82 | O97: ='Demand Profile'!D86 -> 110 | P97: 108 | Q97: 500 | R97: 498 | S97: 0 | T97: 391 | V97: 0
B98: 83 | C98: Day 83 | D98: ='Demand Profile'!C87 -> 17 | E98: 405 | F98: 0 | G98: 388 | H98: 0 | I98: 394 | J98: Yes | K98: 500 | M98: 83 | N98: Day 83 | O98: ='Demand Profile'!D87 -> 133 | P98: 498 | Q98: 0 | R98: 365 | S98: 0 | T98: 325 | V98: 0
B99: 84 | C99: Day 84 | D99: ='Demand Profile'!C88 -> 43 | E99: 388 | F99: 0 | G99: 345 | H99: 500 | I99: 396 | K99: 0 | M99: 84 | N99: Day 84 | O99: ='Demand Profile'!D88 -> 50 | P99: 365 | Q99: 0 | R99: 315 | S99: 0 | T99: 315 | U99: Yes | V99: 500
B100: 85 | C100: Day 85 | D100: ='Demand Profile'!C89 -> 69 | E100: 345 | F100: 0 | G100: 276 | H100: 500 | I100: 373 | K100: 0 | M100: 85 | N100: Day 85 | O100: ='Demand Profile'!D89 -> 82 | P100: 315 | Q100: 0 | R100: 233 | S100: 500 | T100: 277 | V100: 0
B101: 86 | C101: Day 86 | D101: ='Demand Profile'!C90 -> 14 | E101: 276 | F101: 0 | G101: 262 | H101: 500 | I101: 435 | K101: 0 | M101: 86 | N101: Day 86 | O101: ='Demand Profile'!D90 -> 36 | P101: 233 | Q101: 0 | R101: 197 | S101: 500 | T101: 304 | V101: 0
B102: 87 | C102: Day 87 | D102: ='Demand Profile'!C91 -> 95 | E102: 262 | F102: 0 | G102: 167 | H102: 500 | I102: 386 | K102: 0 | M102: 87 | N102: Day 87 | O102: ='Demand Profile'!D91 -> 80 | P102: 197 | Q102: 0 | R102: 117 | S102: 500 | T102: 332 | V102: 0
B103: 88 | C103: Day 88 | D103: ='Demand Profile'!C92 -> 38 | E103: 167 | F103: 0 | G103: 129 | H103: 500 | I103: 406 | K103: 0 | M103: 88 | N103: Day 88 | O103: ='Demand Profile'!D92 -> 10 | P103: 117 | Q103: 0 | R103: 107 | S103: 500 | T103: 394 | V103: 0
B104: 89 | C104: Day 89 | D104: ='Demand Profile'!C93 -> 58 | E104: 129 | F104: 0 | G104: 71 | H104: 500 | I104: 407 | K104: 0 | M104: 89 | N104: Day 89 | O104: ='Demand Profile'!D93 -> 67 | P104: 107 | Q104: 0 | R104: 40 | S104: 500 | T104: 435 | V104: 0
B105: 90 | C105: Day 90 | D105: ='Demand Profile'!C94 -> 77 | E105: 71 | F105: 500 | G105: 494 | H105: 0 | I105: 403 | K105: 0 | M105: 90 | N105: Day 90 | O105: ='Demand Profile'!D94 -> 40 | P105: 40 | Q105: 500 | R105: 500 | S105: 0 | T105: 533 | U105: Yes | V105: 500
B106: 91 | C106: Day 91 | D106: ='Demand Profile'!C95 -> 45 | E106: 494 | F106: 0 | G106: 449 | H106: 0 | I106: 372 | K106: 0 | M106: 91 | N106: Day 91 | O106: ='Demand Profile'!D95 -> 44 | P106: 500 | Q106: 0 | R106: 456 | S106: 500 | T106: 628 | V106: 0
B107: 92 | C107: Day 92 | D107: ='Demand Profile'!C96 -> 46 | E107: 449 | F107: 0 | G107: 403 | H107: 0 | I107: 331 | K107: 0 | M107: 92 | N107: Day 92 | O107: ='Demand Profile'!D96 -> 63 | P107: 456 | Q107: 0 | R107: 393 | S107: 500 | T107: 677 | V107: 0
B108: 93 | C108: Day 93 | D108: ='Demand Profile'!C97 -> 76 | E108: 403 | F108: 0 | G108: 327 | H108: 0 | I108: 320 | K108: 0 | M108: 93 | N108: Day 93 | O108: ='Demand Profile'!D97 -> 108 | P108: 393 | Q108: 0 | R108: 285 | S108: 500 | T108: 682 | V108: 0
B109: 94 | C109: Day 94 | D109: ='Demand Profile'!C98 -> 46 | E109: 327 | F109: 0 | G109: 281 | H109: 0 | I109: 366 | J109: Yes | K109: 500 | M109: 94 | N109: Day 94 | O109: ='Demand Profile'!D98 -> 72 | P109: 285 | Q109: 0 | R109: 213 | S109: 500 | T109: 735 | U109: Yes | V109: 522
B110: 95 | C110: Day 95 | D110: ='Demand Profile'!C99 -> 58 | E110: 281 | F110: 0 | G110: 223 | H110: 500 | I110: 317 | K110: 0 | M110: 95 | N110: Day 95 | O110: ='Demand Profile'!D99 -> 108 | P110: 213 | Q110: 0 | R110: 105 | S110: 1022 | T110: 763 | V110: 0
B111: 96 | C111: Day 96 | D111: ='Demand Profile'!C100 -> 59 | E111: 223 | F111: 0 | G111: 164 | H111: 500 | I111: 342 | K111: 0 | M111: 96 | N111: Day 96 | O111: ='Demand Profile'!D100 -> 138 | P111: 105 | Q111: 500 | R111: 467 | S111: 522 | T111: 753 | V111: 0
B112: 97 | C112: Day 97 | D112: ='Demand Profile'!C101 -> 73 | E112: 164 | F112: 0 | G112: 91 | H112: 500 | I112: 353 | K112: 0 | M112: 97 | N112: Day 97 | O112: ='Demand Profile'!D101 -> 139 | P112: 467 | Q112: 0 | R112: 328 | S112: 522 | T112: 664 | V112: 0
B113: 98 | C113: Day 98 | D113: ='Demand Profile'!C102 -> 14 | E113: 91 | F113: 0 | G113: 77 | H113: 500 | I113: 391 | K113: 0 | M113: 98 | N113: Day 98 | O113: ='Demand Profile'!D102 -> 112 | P113: 328 | Q113: 0 | R113: 216 | S113: 522 | T113: 675 | V113: 0
B114: 99 | C114: Day 99 | D114: ='Demand Profile'!C103 -> 5 | E114: 77 | F114: 0 | G114: 72 | H114: 500 | I114: 486 | K114: 0 | M114: 99 | N114: Day 99 | O114: ='Demand Profile'!D103 -> 113 | P114: 216 | Q114: 0 | R114: 103 | S114: 522 | T114: 576 | V114: 0
B115: 100 | C115: Day 100 | D115: ='Demand Profile'!C104 -> 65 | E115: 72 | F115: 0 | G115: 7 | H115: 500 | I115: 459 | K115: 0 | M115: 100 | N115: Day 100 | O115: ='Demand Profile'!D104 -> 125 | P115: 103 | Q115: 522 | R115: 500 | S115: 0 | T115: 513 | U115: Yes | V115: 500
B116: 101 | C116: Day 101 | D116: ='Demand Profile'!C105 -> 92 | E116: 7 | F116: 500 | G116: 415 | H116: 0 | I116: 382 | K116: 0 | M116: 101 | N116: Day 101 | O116: ='Demand Profile'!D105 -> 136 | P116: 500 | Q116: 0 | R116: 364 | S116: 500 | T116: 492 | V116: 0
B117: 102 | C117: Day 102 | D117: ='Demand Profile'!C106 -> 9 | E117: 415 | F117: 0 | G117: 406 | H117: 0 | I117: 430 | J117: Yes | K117: 500 | M117: 102 | N117: Day 102 | O117: ='Demand Profile'!D106 -> 128 | P117: 364 | Q117: 0 | R117: 236 | S117: 500 | T117: 484 | V117: 0
B118: 103 | C118: Day 103 | D118: ='Demand Profile'!C107 -> 84 | E118: 406 | F118: 0 | G118: 322 | H118: 500 | I118: 426 | K118: 0 | M118: 103 | N118: Day 103 | O118: ='Demand Profile'!D107 -> 50 | P118: 236 | Q118: 0 | R118: 186 | S118: 500 | T118: 455 | V118: 0
B119: 104 | C119: Day 104 | D119: ='Demand Profile'!C108 -> 84 | E119: 322 | F119: 0 | G119: 238 | H119: 500 | I119: 366 | K119: 0 | M119: 104 | N119: Day 104 | O119: ='Demand Profile'!D108 -> 123 | P119: 186 | Q119: 0 | R119: 63 | S119: 500 | T119: 435 | V119: 0
B120: 105 | C120: Day 105 | D120: ='Demand Profile'!C109 -> 52 | E120: 238 | F120: 0 | G120: 186 | H120: 500 | I120: 356 | K120: 0 | M120: 105 | N120: Day 105 | O120: ='Demand Profile'!D109 -> 14 | P120: 63 | Q120: 0 | R120: 49 | S120: 500 | T120: 558 | U120: Yes | V120: 509
B121: 106 | C121: Day 106 | D121: ='Demand Profile'!C110 -> 100 | E121: 186 | F121: 0 | G121: 86 | H121: 500 | I121: 327 | K121: 0 | M121: 106 | N121: Day 106 | O121: ='Demand Profile'!D110 -> 62 | P121: 49 | Q121: 500 | R121: 487 | S121: 509 | T121: 618 | V121: 0
B122: 107 | C122: Day 107 | D122: ='Demand Profile'!C111 -> 38 | E122: 86 | F122: 0 | G122: 48 | H122: 500 | I122: 371 | K122: 0 | M122: 107 | N122: Day 107 | O122: ='Demand Profile'!D111 -> 115 | P122: 487 | Q122: 0 | R122: 372 | S122: 509 | T122: 536 | V122: 0
B123: 108 | C123: Day 108 | D123: ='Demand Profile'!C112 -> 15 | E123: 48 | F123: 0 | G123: 33 | H123: 500 | I123: 415 | K123: 0 | M123: 108 | N123: Day 108 | O123: ='Demand Profile'!D112 -> 120 | P123: 372 | Q123: 0 | R123: 252 | S123: 509 | T123: 433 | V123: 0
B124: 109 | C124: Day 109 | D124: ='Demand Profile'!C113 -> 57 | E124: 33 | F124: 500 | G124: 476 | H124: 0 | I124: 451 | K124: 0 | M124: 109 | N124: Day 109 | O124: ='Demand Profile'!D113 -> 21 | P124: 252 | Q124: 0 | R124: 231 | S124: 509 | T124: 516 | V124: 0
B125: 110 | C125: Day 110 | D125: ='Demand Profile'!C114 -> 80 | E125: 476 | F125: 0 | G125: 396 | H125: 0 | I125: 465 | J125: Yes | K125: 500 | M125: 110 | N125: Day 110 | O125: ='Demand Profile'!D114 -> 103 | P125: 231 | Q125: 0 | R125: 128 | S125: 509 | T125: 543 | V125: 0
B126: 111 | C126: Day 111 | D126: ='Demand Profile'!C115 -> 24 | E126: 396 | F126: 0 | G126: 372 | H126: 500 | I126: 523 | K126: 0 | M126: 111 | N126: Day 111 | O126: ='Demand Profile'!D115 -> 137 | P126: 128 | Q126: 509 | R126: 500 | S126: 0 | T126: 477 | V126: 0
B127: 112 | C127: Day 112 | D127: ='Demand Profile'!C116 -> 42 | E127: 372 | F127: 0 | G127: 330 | H127: 500 | I127: 574 | K127: 0 | M127: 112 | N127: Day 112 | O127: ='Demand Profile'!D116 -> 122 | P127: 500 | Q127: 0 | R127: 378 | S127: 0 | T127: 475 | U127: Yes | V127: 500
B128: 113 | C128: Day 113 | D128: ='Demand Profile'!C117 -> 71 | E128: 330 | F128: 0 | G128: 259 | H128: 500 | I128: 599 | K128: 0 | M128: 113 | N128: Day 113 | O128: ='Demand Profile'!D117 -> 33 | P128: 378 | Q128: 0 | R128: 345 | S128: 500 | T128: 512 | V128: 0
B129: 114 | C129: Day 114 | D129: ='Demand Profile'!C118 -> 82 | E129: 259 | F129: 0 | G129: 177 | H129: 500 | I129: 518 | K129: 0 | M129: 114 | N129: Day 114 | O129: ='Demand Profile'!D118 -> 17 | P129: 345 | Q129: 0 | R129: 328 | S129: 500 | T129: 581 | V129: 0
B130: 115 | C130: Day 115 | D130: ='Demand Profile'!C119 -> 59 | E130: 177 | F130: 0 | G130: 118 | H130: 500 | I130: 461 | K130: 0 | M130: 115 | N130: Day 115 | O130: ='Demand Profile'!D119 -> 104 | P130: 328 | Q130: 0 | R130: 224 | S130: 500 | T130: 571 | V130: 0
B131: 116 | C131: Day 116 | D131: ='Demand Profile'!C120 -> 93 | E131: 118 | F131: 0 | G131: 25 | H131: 500 | I131: 386 | K131: 0 | M131: 116 | N131: Day 116 | O131: ='Demand Profile'!D120 -> 130 | P131: 224 | Q131: 0 | R131: 94 | S131: 500 | T131: 532 | V131: 0
B132: 117 | C132: Day 117 | D132: ='Demand Profile'!C121 -> 94 | E132: 25 | F132: 500 | G132: 431 | H132: 0 | I132: 364 | K132: 0 | M132: 117 | N132: Day 117 | O132: ='Demand Profile'!D121 -> 71 | P132: 94 | Q132: 0 | R132: 23 | S132: 500 | T132: 492 | V132: 0
B133: 118 | C133: Day 118 | D133: ='Demand Profile'!C122 -> 82 | E133: 431 | F133: 0 | G133: 349 | H133: 0 | I133: 306 | K133: 0 | M133: 118 | N133: Day 118 | O133: ='Demand Profile'!D122 -> 120 | P133: 23 | Q133: 500 | R133: 403 | S133: 0 | T133: 505 | U133: Yes | V133: 500
B134: 119 | C134: Day 119 | D134: ='Demand Profile'!C123 -> 93 | E134: 349 | F134: 0 | G134: 256 | H134: 0 | I134: 262 | J134: Yes | K134: 500 | M134: 119 | N134: Day 119 | O134: ='Demand Profile'!D123 -> 70 | P134: 403 | Q134: 0 | R134: 333 | S134: 500 | T134: 556 | V134: 0
B135: 120 | C135: Day 120 | D135: ='Demand Profile'!C124 -> 96 | E135: 256 | F135: 0 | G135: 160 | H135: 500 | I135: 198 | K135: 0 | M135: 120 | N135: Day 120 | O135: ='Demand Profile'!D124 -> 86 | P135: 333 | Q135: 0 | R135: 247 | S135: 500 | T135: 591 | V135: 0
B136: 121 | C136: Day 121 | D136: ='Demand Profile'!C125 -> 1 | E136: 160 | F136: 0 | G136: 159 | H136: 500 | I136: 204 | K136: 0 | M136: 121 | N136: Day 121 | O136: ='Demand Profile'!D125 -> 94 | P136: 247 | Q136: 0 | R136: 153 | S136: 500 | T136: 617 | V136: 0
B137: 122 | C137: Day 122 | D137: ='Demand Profile'!C126 -> 2 | E137: 159 | F137: 0 | G137: 157 | H137: 500 | I137: 237 | K137: 0 | M137: 122 | N137: Day 122 | O137: ='Demand Profile'!D126 -> 91 | P137: 153 | Q137: 0 | R137: 62 | S137: 500 | T137: 553 | V137: 0
B138: 123 | C138: Day 123 | D138: ='Demand Profile'!C127 -> 18 | E138: 157 | F138: 0 | G138: 139 | H138: 500 | I138: 273 | K138: 0 | M138: 123 | N138: Day 123 | O138: ='Demand Profile'!D127 -> 31 | P138: 62 | Q138: 0 | R138: 31 | S138: 500 | T138: 541 | U138: Yes | V138: 510
B139: 124 | C139: Day 124 | D139: ='Demand Profile'!C128 -> 72 | E139: 139 | F139: 0 | G139: 67 | H139: 500 | I139: 275 | K139: 0 | M139: 124 | N139: Day 124 | O139: ='Demand Profile'!D128 -> 133 | P139: 31 | Q139: 500 | R139: 398 | S139: 510 | T139: 525 | V139: 0
B140: 125 | C140: Day 125 | D140: ='Demand Profile'!C129 -> 24 | E140: 67 | F140: 0 | G140: 43 | H140: 500 | I140: 291 | K140: 0 | M140: 125 | N140: Day 125 | O140: ='Demand Profile'!D129 -> 121 | P140: 398 | Q140: 0 | R140: 277 | S140: 510 | T140: 511 | V140: 0
B141: 126 | C141: Day 126 | D141: ='Demand Profile'!C130 -> 49 | E141: 43 | F141: 500 | G141: 494 | H141: 0 | I141: 341 | K141: 0 | M141: 126 | N141: Day 126 | O141: ='Demand Profile'!D130 -> 121 | P141: 277 | Q141: 0 | R141: 156 | S141: 510 | T141: 529 | V141: 0
B142: 127 | C142: Day 127 | D142: ='Demand Profile'!C131 -> 32 | E142: 494 | F142: 0 | G142: 462 | H142: 0 | I142: 395 | K142: 0 | M142: 127 | N142: Day 127 | O142: ='Demand Profile'!D131 -> 120 | P142: 156 | Q142: 0 | R142: 36 | S142: 510 | T142: 476 | V142: 0
B143: 128 | C143: Day 128 | D143: ='Demand Profile'!C132 -> 7 | E143: 462 | F143: 0 | G143: 455 | H143: 0 | I143: 414 | K143: 0 | M143: 128 | N143: Day 128 | O143: ='Demand Profile'!D132 -> 27 | P143: 36 | Q143: 0 | R143: 9 | S143: 510 | T143: 579 | U143: Yes | V143: 570
B144: 129 | C144: Day 129 | D144: ='Demand Profile'!C133 -> 35 | E144: 455 | F144: =IF(B144<=LT_Store1,0,OFFSET(K144,-1*LT_Store1,0,1,1)) -> 0 | G144: 420 | H144: =SUM(OFFSET(K144,-1,0,-1*(LT_Store1-1),1)) -> 0 | I144: =SUM(OFFSET(D145,0,0,LT_Store1,1)) -> 458 | J144: Yes | K144: =IF(J144="Yes",MAX(I144-G144,MOQ),0) -> 500 | M144: 129 | N144: Day 129 | O144: ='Demand Profile'!D133 -> 19 | P144: 9 | Q144: =IF(M144<=LT_Store2,0,OFFSET(V144,-1*LT_Store2,0,1,1)) -> 510 | R144: 500 | S144: =SUM(OFFSET(V144,-1,0,-1*(LT_Store2-1),1)) -> 570 | T144: =SUM(OFFSET(O145,0,0,LT_Store2,1)) -> 664 | V144: =IF(U144="Yes",MAX(T144-R144,MOQ),0) -> 0
B145: 130 | C145: Day 130 | D145: ='Demand Profile'!C134 -> 54 | E145: 420 | F145: 0 | G145: =E145+F145-D145 -> 366 | H145: 500 | I145: 466 | J145: =IF(I145<G145+H145,"","Yes") ->  | K145: 0 | M145: 130 | N145: Day 130 | O145: ='Demand Profile'!D134 -> 117 | P145: 500 | Q145: 0 | R145: 383 | S145: 570 | T145: 625 | V145: 0
B146: 131 | C146: Day 131 | D146: ='Demand Profile'!C135 -> 74 | E146: =G145 -> 366 | F146: 0 | G146: 292 | H146: 500 | I146: 484 | K146: 0 | M146: 131 | N146: Day 131 | O146: ='Demand Profile'!D135 -> 107 | P146: =R145 -> 383 | Q146: 0 | R146: 276 | S146: 570 | T146: 633 | V146: 0
B147: 132 | C147: Day 132 | D147: ='Demand Profile'!C136 -> 40 | E147: 292 | F147: 0 | G147: 252 | H147: 500 | I147: 482 | K147: 0 | M147: 132 | N147: Day 132 | O147: ='Demand Profile'!D136 -> 139 | P147: 276 | Q147: 0 | R147: 137 | S147: 570 | T147: 566 | V147: 0
B148: 133 | C148: Day 133 | D148: ='Demand Profile'!C137 -> 99 | E148: 252 | F148: 0 | G148: 153 | H148: 500 | I148: 429 | K148: 0 | M148: 133 | N148: Day 133 | O148: ='Demand Profile'!D137 -> 67 | P148: 137 | Q148: 0 | R148: =P148+Q148-O148 -> 70 | S148: 570 | T148: 580 | U148: =IF(T148<R148+S148,"","Yes") ->  | V148: 0
B149: 134 | C149: Day 134 | D149: ='Demand Profile'!C138 -> 86 | E149: 153 | F149: 0 | G149: 67 | H149: 500 | I149: 407 | K149: 0 | M149: 134 | N149: Day 134 | O149: ='Demand Profile'!D138 -> 130 | P149: 70 | Q149: 570 | R149: 510 | S149: 0 | T149: 536 | U149: Yes | V149: 500
B150: 135 | C150: Day 135 | D150: ='Demand Profile'!C139 -> 26 | E150: 67 | F150: 0 | G150: 41 | H150: 500 | I150: 446 | K150: 0 | M150: 135 | N150: Day 135 | O150: ='Demand Profile'!D139 -> 104 | P150: 510 | Q150: 0 | R150: 406 | S150: 500 | T150: 514 | V150: 0
B151: 136 | C151: Day 136 | D151: ='Demand Profile'!C140 -> 79 | E151: 41 | F151: 500 | G151: 462 | H151: 0 | I151: 444 | K151: 0 | M151: 136 | N151: Day 136 | O151: ='Demand Profile'!D140 -> 78 | P151: 406 | Q151: 0 | R151: 328 | S151: 500 | T151: 564 | V151: 0
B152: 137 | C152: Day 137 | D152: ='Demand Profile'!C141 -> 62 | E152: 462 | F152: 0 | G152: 400 | H152: 0 | I152: 481 | J152: Yes | K152: 500 | M152: 137 | N152: Day 137 | O152: ='Demand Profile'!D141 -> 115 | P152: 328 | Q152: 0 | R152: 213 | S152: 500 | T152: 572 | V152: 0
B153: 138 | C153: Day 138 | D153: ='Demand Profile'!C142 -> 92 | E153: 400 | F153: 0 | G153: 308 | H153: 500 | I153: 427 | K153: 0 | M153: 138 | N153: Day 138 | O153: ='Demand Profile'!D142 -> 72 | P153: 213 | Q153: 0 | R153: 141 | S153: 500 | T153: 570 | V153: 0
B154: 139 | C154: Day 139 | D154: ='Demand Profile'!C143 -> 38 | E154: 308 | F154: 0 | G154: 270 | H154: 500 | I154: 440 | K154: 0 | M154: 139 | N154: Day 139 | O154: ='Demand Profile'!D143 -> 81 | P154: 141 | Q154: 0 | R154: 60 | S154: 500 | T154: 594 | U154: Yes | V154: 534
B155: 140 | C155: Day 140 | D155: ='Demand Profile'!C144 -> 46 | E155: 270 | F155: 0 | G155: 224 | H155: 500 | I155: 444 | K155: 0 | M155: 140 | N155: Day 140 | O155: ='Demand Profile'!D144 -> 86 | P155: 60 | Q155: 500 | R155: 474 | S155: 534 | T155: 634 | V155: 0
B156: 141 | C156: Day 141 | D156: ='Demand Profile'!C145 -> 64 | E156: 224 | F156: 0 | G156: 160 | H156: 500 | I156: 397 | K156: 0 | M156: 141 | N156: Day 141 | O156: ='Demand Profile'!D145 -> 82 | P156: 474 | Q156: 0 | R156: 392 | S156: 534 | T156: 616 | V156: 0
B157: 142 | C157: Day 142 | D157: ='Demand Profile'!C146 -> 65 | E157: 160 | F157: 0 | G157: 95 | H157: 500 | I157: 396 | K157: 0 | M157: 142 | N157: Day 142 | O157: ='Demand Profile'!D146 -> 128 | P157: 392 | Q157: 0 | R157: 264 | S157: 534 | T157: 532 | V157: 0
B158: 143 | C158: Day 143 | D158: ='Demand Profile'!C147 -> 77 | E158: 95 | F158: 0 | G158: 18 | H158: 500 | I158: 334 | K158: 0 | M158: 143 | N158: Day 143 | O158: ='Demand Profile'!D147 -> 123 | P158: 264 | Q158: 0 | R158: 141 | S158: 534 | T158: 491 | V158: 0
B159: 144 | C159: Day 144 | D159: ='Demand Profile'!C148 -> 99 | E159: 18 | F159: 500 | G159: 419 | H159: 0 | I159: 266 | K159: 0 | M159: 144 | N159: Day 144 | O159: ='Demand Profile'!D148 -> 70 | P159: 141 | Q159: 0 | R159: 71 | S159: 534 | T159: 459 | V159: 0
B160: 145 | C160: Day 145 | D160: ='Demand Profile'!C149 -> 38 | E160: 419 | F160: 0 | G160: 381 | H160: 0 | I160: 291 | K160: 0 | M160: 145 | N160: Day 145 | O160: ='Demand Profile'!D149 -> 105 | P160: 71 | Q160: 534 | R160: 500 | S160: 0 | T160: 434 | V160: 0
B161: 146 | C161: Day 146 | D161: ='Demand Profile'!C150 -> 51 | E161: 381 | F161: 0 | G161: 330 | H161: 0 | I161: 262 | K161: 0 | M161: 146 | N161: Day 146 | O161: ='Demand Profile'!D150 -> 126 | P161: 500 | Q161: 0 | R161: 374 | S161: 0 | T161: 405 | U161: Yes | V161: 500
B162: 147 | C162: Day 147 | D162: ='Demand Profile'!C151 -> 50 | E162: 330 | F162: 0 | G162: 280 | H162: 0 | I162: 262 | K162: 0 | M162: 147 | N162: Day 147 | O162: ='Demand Profile'!D151 -> 64 | P162: 374 | Q162: 0 | R162: 310 | S162: 500 | T162: 433 | V162: 0
B163: 148 | C163: Day 148 | D163: ='Demand Profile'!C152 -> 17 | E163: 280 | F163: 0 | G163: 263 | H163: 0 | I163: 277 | J163: Yes | K163: 500 | M163: 148 | N163: Day 148 | O163: ='Demand Profile'!D152 -> 44 | P163: 310 | Q163: 0 | R163: 266 | S163: 500 | T163: 459 | V163: 0
B164: 149 | C164: Day 149 | D164: ='Demand Profile'!C153 -> 64 | E164: 263 | F164: 0 | G164: 199 | H164: 500 | I164: 262 | K164: 0 | M164: 149 | N164: Day 149 | O164: ='Demand Profile'!D153 -> 82 | P164: 266 | Q164: 0 | R164: 184 | S164: 500 | T164: 471 | V164: 0
B165: 150 | C165: Day 150 | D165: ='Demand Profile'!C154 -> 15 | E165: 199 | F165: 0 | G165: 184 | H165: 500 | I165: 328 | K165: 0 | M165: 150 | N165: Day 150 | O165: ='Demand Profile'!D154 -> 38 | P165: 184 | Q165: 0 | R165: 146 | S165: 500 | T165: 540 | V165: 0
B166: 151 | C166: Day 151 | D166: ='Demand Profile'!C155 -> 31 | E166: 184 | F166: 0 | G166: 153 | H166: 500 | I166: 302 | K166: 0 | M166: 151 | N166: Day 151 | O166: ='Demand Profile'!D155 -> 80 | P166: 146 | Q166: 0 | R166: 66 | S166: 500 | T166: 476 | V166: 0
B167: 152 | C167: Day 152 | D167: ='Demand Profile'!C156 -> 63 | E167: 153 | F167: 0 | G167: 90 | H167: 500 | I167: 326 | K167: 0 | M167: 152 | N167: Day 152 | O167: ='Demand Profile'!D156 -> 97 | P167: 66 | Q167: 500 | R167: 469 | S167: 0 | T167: 497 | U167: Yes | V167: 500
B168: 153 | C168: Day 153 | D168: ='Demand Profile'!C157 -> 22 | E168: 90 | F168: 0 | G168: 68 | H168: 500 | I168: 345 | K168: 0 | M168: 153 | N168: Day 153 | O168: ='Demand Profile'!D157 -> 92 | P168: 469 | Q168: 0 | R168: 377 | S168: 500 | T168: 443 | V168: 0
B169: 154 | C169: Day 154 | D169: ='Demand Profile'!C158 -> 50 | E169: 68 | F169: 0 | G169: 18 | H169: 500 | I169: 373 | K169: 0 | M169: 154 | N169: Day 154 | O169: ='Demand Profile'!D158 -> 70 | P169: 377 | Q169: 0 | R169: 307 | S169: 500 | T169: 416 | V169: 0
B170: 155 | C170: Day 155 | D170: ='Demand Profile'!C159 -> 32 | E170: 18 | F170: 500 | G170: 486 | H170: 0 | I170: 385 | K170: 0 | M170: 155 | N170: Day 155 | O170: ='Demand Profile'!D159 -> 94 | P170: 307 | Q170: 0 | R170: 213 | S170: 500 | T170: 364 | V170: 0
B171: 156 | C171: Day 156 | D171: ='Demand Profile'!C160 -> 49 | E171: 486 | F171: 0 | G171: 437 | H171: 0 | I171: 417 | K171: 0 | M171: 156 | N171: Day 156 | O171: ='Demand Profile'!D160 -> 107 | P171: 213 | Q171: 0 | R171: 106 | S171: 500 | T171: 280 | V171: 0
B172: 157 | C172: Day 157 | D172: ='Demand Profile'!C161 -> 81 | E172: 437 | F172: 0 | G172: 356 | H172: 0 | I172: 435 | J172: Yes | K172: 500 | M172: 157 | N172: Day 157 | O172: ='Demand Profile'!D161 -> 16 | P172: 106 | Q172: 0 | R172: 90 | S172: 500 | T172: 364 | V172: 0
B173: 158 | C173: Day 158 | D173: ='Demand Profile'!C162 -> 5 | E173: 356 | F173: 0 | G173: 351 | H173: 500 | I173: 458 | K173: 0 | M173: 158 | N173: Day 158 | O173: ='Demand Profile'!D162 -> 118 | P173: 90 | Q173: 500 | R173: 472 | S173: 0 | T173: 336 | V173: 0
B174: 159 | C174: Day 159 | D174: ='Demand Profile'!C163 -> 87 | E174: 351 | F174: 0 | G174: 264 | H174: 500 | I174: 439 | K174: 0 | M174: 159 | N174: Day 159 | O174: ='Demand Profile'!D163 -> 38 | P174: 472 | Q174: 0 | R174: 434 | S174: 0 | T174: 438 | U174: Yes | V174: 500
B175: 160 | C175: Day 160 | D175: ='Demand Profile'!C164 -> 41 | E175: 264 | F175: 0 | G175: 223 | H175: 500 | I175: 473 | K175: 0 | M175: 160 | N175: Day 160 | O175: ='Demand Profile'!D164 -> 43 | P175: 434 | Q175: 0 | R175: 391 | S175: 500 | T175: 479 | V175: 0
B176: 161 | C176: Day 161 | D176: ='Demand Profile'!C165 -> 78 | E176: 223 | F176: 0 | G176: 145 | H176: 500 | I176: 410 | K176: 0 | M176: 161 | N176: Day 161 | O176: ='Demand Profile'!D165 -> 42 | P176: 391 | Q176: 0 | R176: 349 | S176: 500 | T176: 471 | V176: 0
B177: 162 | C177: Day 162 | D177: ='Demand Profile'!C166 -> 44 | E177: 145 | F177: 0 | G177: 101 | H177: 500 | I177: 390 | K177: 0 | M177: 162 | N177: Day 162 | O177: ='Demand Profile'!D166 -> 23 | P177: 349 | Q177: 0 | R177: 326 | S177: 500 | T177: 482 | V177: 0
B178: 163 | C178: Day 163 | D178: ='Demand Profile'!C167 -> 81 | E178: 101 | F178: 0 | G178: 20 | H178: 500 | I178: 404 | K178: 0 | M178: 163 | N178: Day 163 | O178: ='Demand Profile'!D167 -> 100 | P178: 326 | Q178: 0 | R178: 226 | S178: 500 | T178: 435 | V178: 0
B179: 164 | C179: Day 164 | D179: ='Demand Profile'!C168 -> 99 | E179: 20 | F179: 500 | G179: 421 | H179: 0 | I179: 400 | K179: 0 | M179: 164 | N179: Day 164 | O179: ='Demand Profile'!D168 -> 90 | P179: 226 | Q179: 0 | R179: 136 | S179: 500 | T179: 389 | V179: 0
B180: 165 | C180: Day 165 | D180: ='Demand Profile'!C169 -> 28 | E180: 421 | F180: 0 | G180: 393 | H180: 0 | I180: 392 | K180: 0 | M180: 165 | N180: Day 165 | O180: ='Demand Profile'!D169 -> 140 | P180: 136 | Q180: 500 | R180: 496 | S180: 0 | T180: 353 | V180: 0
B181: 166 | C181: Day 166 | D181: ='Demand Profile'!C170 -> 68 | E181: 393 | F181: 0 | G181: 325 | H181: 0 | I181: 390 | J181: Yes | K181: 500 | M181: 166 | N181: Day 166 | O181: ='Demand Profile'!D170 -> 84 | P181: 496 | Q181: 0 | R181: 412 | S181: 0 | T181: 353 | V181: 0
B182: 167 | C182: Day 167 | D182: ='Demand Profile'!C171 -> 75 | E182: 325 | F182: 0 | G182: 250 | H182: 500 | I182: 402 | K182: 0 | M182: 167 | N182: Day 167 | O182: ='Demand Profile'!D171 -> 34 | P182: 412 | Q182: 0 | R182: 378 | S182: 0 | T182: 425 | U182: Yes | V182: 500
B183: 168 | C183: Day 168 | D183: ='Demand Profile'!C172 -> 15 | E183: 250 | F183: 0 | G183: 235 | H183: 500 | I183: 487 | K183: 0 | M183: 168 | N183: Day 168 | O183: ='Demand Profile'!D172 -> 34 | P183: 378 | Q183: 0 | R183: 344 | S183: 500 | T183: 491 | V183: 0
B184: 169 | C184: Day 169 | D184: ='Demand Profile'!C173 -> 24 | E184: 235 | F184: 0 | G184: 211 | H184: 500 | I184: 498 | K184: 0 | M184: 169 | N184: Day 169 | O184: ='Demand Profile'!D173 -> 53 | P184: 344 | Q184: 0 | R184: 291 | S184: 500 | T184: 528 | V184: 0
B185: 170 | C185: Day 170 | D185: ='Demand Profile'!C174 -> 95 | E185: 211 | F185: 0 | G185: 116 | H185: 500 | I185: 422 | K185: 0 | M185: 170 | N185: Day 170 | O185: ='Demand Profile'!D174 -> 44 | P185: 291 | Q185: 0 | R185: 247 | S185: 500 | T185: 507 | V185: 0
B186: 171 | C186: Day 171 | D186: ='Demand Profile'!C175 -> 95 | E186: 116 | F186: 0 | G186: 21 | H186: 500 | I186: 369 | K186: 0 | M186: 171 | N186: Day 171 | O186: ='Demand Profile'!D175 -> 104 | P186: 247 | Q186: 0 | R186: 143 | S186: 500 | T186: 463 | V186: 0
B187: 172 | C187: Day 172 | D187: ='Demand Profile'!C176 -> 20 | E187: 21 | F187: 0 | G187: 1 | H187: 500 | I187: 445 | K187: 0 | M187: 172 | N187: Day 172 | O187: ='Demand Profile'!D176 -> 84 | P187: 143 | Q187: 0 | R187: 59 | S187: 500 | T187: 457 | V187: 0
B188: 173 | C188: Day 173 | D188: ='Demand Profile'!C177 -> 66 | E188: 1 | F188: 500 | G188: 435 | H188: 0 | I188: 452 | J188: Yes | K188: 500 | M188: 173 | N188: Day 173 | O188: ='Demand Profile'!D177 -> 106 | P188: 59 | Q188: 500 | R188: 453 | S188: 0 | T188: 425 | V188: 0
B189: 174 | C189: Day 174 | D189: ='Demand Profile'!C178 -> 87 | E189: 435 | F189: 0 | G189: 348 | H189: 500 | I189: 414 | K189: 0 | M189: 174 | N189: Day 174 | O189: ='Demand Profile'!D178 -> 100 | P189: 453 | Q189: 0 | R189: 353 | S189: 0 | T189: 432 | U189: Yes | V189: 500
B190: 175 | C190: Day 175 | D190: ='Demand Profile'!C179 -> 100 | E190: 348 | F190: 0 | G190: 248 | H190: 500 | I190: 377 | K190: 0 | M190: 175 | N190: Day 175 | O190: ='Demand Profile'!D179 -> 90 | P190: 353 | Q190: 0 | R190: 263 | S190: 500 | T190: 356 | V190: 0
B191: 176 | C191: Day 176 | D191: ='Demand Profile'!C180 -> 35 | E191: 248 | F191: 0 | G191: 213 | H191: 500 | I191: 431 | K191: 0 | M191: 176 | N191: Day 176 | O191: ='Demand Profile'!D180 -> 23 | P191: 263 | Q191: 0 | R191: 240 | S191: 500 | T191: 363 | V191: 0
B192: 177 | C192: Day 177 | D192: ='Demand Profile'!C181 -> 19 | E192: 213 | F192: 0 | G192: 194 | H192: 500 | I192: 506 | K192: 0 | M192: 177 | N192: Day 177 | O192: ='Demand Profile'!D181 -> 60 | P192: 240 | Q192: 0 | R192: 180 | S192: 500 | T192: 327 | V192: 0
B193: 178 | C193: Day 178 | D193: ='Demand Profile'!C182 -> 42 | E193: 194 | F193: 0 | G193: 152 | H193: 500 | I193: 562 | K193: 0 | M193: 178 | N193: Day 178 | O193: ='Demand Profile'!D182 -> 78 | P193: 180 | Q193: 0 | R193: 102 | S193: 500 | T193: 294 | V193: 0
B194: 179 | C194: Day 179 | D194: ='Demand Profile'!C183 -> 96 | E194: 152 | F194: 0 | G194: 56 | H194: 500 | I194: 535 | K194: 0 | M194: 179 | N194: Day 179 | O194: ='Demand Profile'!D183 -> 74 | P194: 102 | Q194: 0 | R194: 28 | S194: 500 | T194: 307 | V194: 0
B195: 180 | C195: Day 180 | D195: ='Demand Profile'!C184 -> 73 | E195: 56 | F195: 500 | G195: 483 | H195: 0 | I195: 479 | K195: 0 | M195: 180 | N195: Day 180 | O195: ='Demand Profile'!D184 -> 107 | P195: 28 | Q195: 500 | R195: 421 | S195: 0 | T195: 290 | V195: 0
B196: 181 | C196: Day 181 | D196: ='Demand Profile'!C185 -> 49 | E196: 483 | F196: 0 | G196: 434 | H196: 0 | I196: 519 | J196: Yes | K196: 500 | M196: 181 | N196: Day 181 | O196: ='Demand Profile'!D185 -> 14 | P196: 421 | Q196: 0 | R196: 407 | S196: 0 | T196: 329 | V196: 0
B197: 182 | C197: Day 182 | D197: ='Demand Profile'!C186 -> 63 | E197: 434 | F197: 0 | G197: 371 | H197: 500 | I197: 496 | K197: 0 | M197: 182 | N197: Day 182 | O197: ='Demand Profile'!D186 -> 30 | P197: 407 | Q197: 0 | R197: 377 | S197: 0 | T197: 376 | V197: 0
B198: 183 | C198: Day 183 | D198: ='Demand Profile'!C187 -> 89 | E198: 371 | F198: 0 | G198: 282 | H198: 500 | I198: 436 | K198: 0 | M198: 183 | N198: Day 183 | O198: ='Demand Profile'!D187 -> 24 | P198: 377 | Q198: 0 | R198: 353 | S198: 0 | T198: 458 | U198: Yes | V198: 500
B199: 184 | C199: Day 184 | D199: ='Demand Profile'!C188 -> 94 | E199: 282 | F199: 0 | G199: 188 | H199: 500 | I199: 416 | K199: 0 | M199: 184 | N199: Day 184 | O199: ='Demand Profile'!D188 -> 45 | P199: 353 | Q199: 0 | R199: 308 | S199: 500 | T199: 486 | V199: 0
B200: 185 | C200: Day 185 | D200: ='Demand Profile'!C189 -> 98 | E200: 188 | F200: 0 | G200: 90 | H200: 500 | I200: 360 | K200: 0 | M200: 185 | N200: Day 185 | O200: ='Demand Profile'!D189 -> 87 | P200: 308 | Q200: 0 | R200: 221 | S200: 500 | T200: 424 | V200: 0
B201: 186 | C201: Day 186 | D201: ='Demand Profile'!C190 -> 69 | E201: 90 | F201: 0 | G201: 21 | H201: 500 | I201: 357 | K201: 0 | M201: 186 | N201: Day 186 | O201: ='Demand Profile'!D190 -> 90 | P201: 221 | Q201: 0 | R201: 131 | S201: 500 | T201: 445 | V201: 0
B202: 187 | C202: Day 187 | D202: ='Demand Profile'!C191 -> 17 | E202: 21 | F202: 0 | G202: 4 | H202: 500 | I202: 375 | K202: 0 | M202: 187 | N202: Day 187 | O202: ='Demand Profile'!D191 -> 53 | P202: 131 | Q202: 0 | R202: 78 | S202: 500 | T202: 415 | V202: 0
B203: 188 | C203: Day 188 | D203: ='Demand Profile'!C192 -> 89 | E203: 4 | F203: 500 | G203: 415 | H203: 0 | I203: 334 | K203: 0 | M203: 188 | N203: Day 188 | O203: ='Demand Profile'!D192 -> 77 | P203: 78 | Q203: 0 | R203: 1 | S203: 500 | T203: 359 | V203: 0
B204: 189 | C204: Day 189 | D204: ='Demand Profile'!C193 -> 40 | E204: 415 | F204: 0 | G204: 375 | H204: 0 | I204: 304 | K204: 0 | M204: 189 | N204: Day 189 | O204: ='Demand Profile'!D193 -> 106 | P204: 1 | Q204: 500 | R204: 395 | S204: 0 | T204: 306 | V204: 0
B205: 190 | C205: Day 190 | D205: ='Demand Profile'!C194 -> 29 | E205: 375 | F205: 0 | G205: 346 | H205: 0 | I205: 283 | K205: 0 | M205: 190 | N205: Day 190 | O205: ='Demand Profile'!D194 -> 73 | P205: 395 | Q205: 0 | R205: 322 | S205: 0 | T205: 352 | U205: Yes | V205: 500
B206: 191 | C206: Day 191 | D206: ='Demand Profile'!C195 -> 74 | E206: 346 | F206: 0 | G206: 272 | H206: 0 | I206: 241 | K206: 0 | M206: 191 | N206: Day 191 | O206: ='Demand Profile'!D195 -> 25 | P206: 322 | Q206: 0 | R206: 297 | S206: 500 | T206: 419 | V206: 0
B207: 192 | C207: Day 192 | D207: ='Demand Profile'!C196 -> 42 | E207: 272 | F207: 0 | G207: 230 | H207: 0 | I207: 243 | J207: Yes | K207: 500 | M207: 192 | N207: Day 192 | O207: ='Demand Profile'!D196 -> 111 | P207: 297 | Q207: 0 | R207: 186 | S207: 500 | T207: 437 | V207: 0
B208: 193 | C208: Day 193 | D208: ='Demand Profile'!C197 -> 66 | E208: 230 | F208: =IF(B208<=LT_Store1,0,OFFSET(K208,-1*LT_Store1,0,1,1)) -> 0 | G208: 164 | H208: =SUM(OFFSET(K208,-1,0,-1*(LT_Store1-1),1)) -> 500 | I208: =SUM(OFFSET(D209,0,0,LT_Store1,1)) -> 237 | K208: =IF(J208="Yes",MAX(I208-G208,MOQ),0) -> 0 | M208: 193 | N208: Day 193 | O208: ='Demand Profile'!D197 -> 23 | P208: 186 | Q208: =IF(M208<=LT_Store2,0,OFFSET(V208,-1*LT_Store2,0,1,1)) -> 0 | R208: 163 | S208: =SUM(OFFSET(V208,-1,0,-1*(LT_Store2-1),1)) -> 500 | T208: =SUM(OFFSET(O209,0,0,LT_Store2,1)) -> 432 | V208: =IF(U208="Yes",MAX(T208-R208,MOQ),0) -> 0
B209: 194 | C209: Day 194 | D209: ='Demand Profile'!C198 -> 35 | E209: 164 | F209: 0 | G209: =E209+F209-D209 -> 129 | H209: 500 | I209: 247 | J209: =IF(I209<G209+H209,"","Yes") ->  | K209: 0 | M209: 194 | N209: Day 194 | O209: ='Demand Profile'!D198 -> 21 | P209: 163 | Q209: 0 | R209: 142 | S209: 500 | T209: 522 | V209: 0
B210: 195 | C210: Day 195 | D210: ='Demand Profile'!C199 -> 48 | E210: =G209 -> 129 | F210: 0 | G210: 81 | H210: 500 | I210: 250 | K210: 0 | M210: 195 | N210: Day 195 | O210: ='Demand Profile'!D199 -> 53 | P210: =R209 -> 142 | Q210: 0 | R210: 89 | S210: 500 | T210: 595 | U210: Yes | V210: 506
B211: 196 | C211: Day 196 | D211: ='Demand Profile'!C200 -> 10 | E211: 81 | F211: 0 | G211: 71 | H211: 500 | I211: 254 | K211: 0 | M211: 196 | N211: Day 196 | O211: ='Demand Profile'!D200 -> 119 | P211: 89 | Q211: 500 | R211: 470 | S211: 506 | T211: 511 | V211: 0
B212: 197 | C212: Day 197 | D212: ='Demand Profile'!C201 -> 8 | E212: 71 | F212: 0 | G212: 63 | H212: 500 | I212: 277 | K212: 0 | M212: 197 | N212: Day 197 | O212: ='Demand Profile'!D201 -> 92 | P212: 470 | Q212: 0 | R212: =P212+Q212-O212 -> 378 | S212: 506 | T212: 431 | U212: =IF(T212<R212+S212,"","Yes") ->  | V212: 0
... 168 more rows

Sheet Simulation Data
E2: Selected Day | F2: =Selected_Day -> 1
E4: Selected Store--> | F4: =Selected_Store -> Store 1 | M4: Store 1 | U4: Store 2
E5: S.N. | F5: Day | G5: Demand | H5: Opening Stock | I5: Order Placed | J5: Stock Received | K5: In-Transit | M5: S.N. | N5: Day | O5: Demand | P5: Opening Stock | Q5: Order Placed | R5: Stock Received | S5: In-Transit | U5: S.N. | V5: Day | W5: Demand | X5: Opening Stock | Y5: Order Placed | Z5: Stock Received | AA5: In-Transit
E6: 1 | F6: =IF(Selected_Day<=20,IF(E6<=Selected_Day,E6,""),Selected_Day-(20-E6)) -> 1 | G6: =IF(Selected_Store="Store 1",O6,W6) -> 100 | H6: =IF(Selected_Store="Store 1",P6,X6) -> 500 | I6: =IF(Selected_Store="Store 1",Q6,Y6) -> 500 | J6: =IF(Selected_Store="Store 1",R6,Z6) ->  | K6: =IF(Selected_Store="Store 1",S6,AA6) ->  | M6: 1 | N6: =F6 -> 1 | O6: =OFFSET(Working!$D$15,$F6,0,1,1) -> 100 | P6: =OFFSET(Working!$E$15,$F6,0,1,1) -> 500 | Q6: =IF(OFFSET(Working!$K$15,$F6,0,1,1)=0,NA(),OFFSET(Working!$K$15,$F6,0,1,1)) -> 500 | R6: =IF(OFFSET(Working!$F$15,$F6,0,1,1)=0,NA(),OFFSET(Working!$F$15,$F6,0,1,1)) ->  | S6: =IF(OFFSET(Working!$H$15,$F6,0,1,1)=0,NA(),OFFSET(Working!$H$15,$F6,0,1,1)) ->  | U6: 1 | V6: =F6 -> 1 | W6: =OFFSET(Working!$O$15,$F6,0,1,1) -> 105 | X6: =OFFSET(Working!$P$15,$F6,0,1,1) -> 800 | Y6: =IF(OFFSET(Working!$V$15,$F6,0,1,1)=0,NA(),OFFSET(Working!$V$15,$F6,0,1,1)) ->  | Z6: =IF(OFFSET(Working!$Q$15,$F6,0,1,1)=0,NA(),OFFSET(Working!$Q$15,$F6,0,1,1)) ->  | AA6: =IF(OFFSET(Working!$S$15,$F6,0,1,1)=0,NA(),OFFSET(Working!$S$15,$F6,0,1,1)) -> 
E7: 2 | M7: 2 | N7: =F7 ->  | O7: =OFFSET(Working!$D$15,N7,0,1,1) ->  | P7: =OFFSET(Working!$E$15,$F7,0,1,1) ->  | Q7: =IF(OFFSET(Working!$K$15,$F7,0,1,1)=0,NA(),OFFSET(Working!$K$15,$F7,0,1,1)) ->  | R7: =IF(OFFSET(Working!$F$15,$F7,0,1,1)=0,NA(),OFFSET(Working!$F$15,$F7,0,1,1)) ->  | S7: =IF(OFFSET(Working!$H$15,$F7,0,1,1)=0,NA(),OFFSET(Working!$H$15,$F7,0,1,1)) ->  | U7: 2 | V7: =F7 ->  | W7: =OFFSET(Working!$O$15,$F7,0,1,1) ->  | X7: =OFFSET(Working!$P$15,$F7,0,1,1) ->  | Y7: =IF(OFFSET(Working!$V$15,$F7,0,1,1)=0,NA(),OFFSET(Working!$V$15,$F7,0,1,1)) ->  | Z7: =IF(OFFSET(Working!$Q$15,$F7,0,1,1)=0,NA(),OFFSET(Working!$Q$15,$F7,0,1,1)) ->  | AA7: =IF(OFFSET(Working!$S$15,$F7,0,1,1)=0,NA(),OFFSET(Working!$S$15,$F7,0,1,1)) -> 
E8: 3 | M8: 3 | O8: =OFFSET(Working!$D$15,N8,0,1,1) ->  | P8: =OFFSET(Working!$E$15,$F8,0,1,1) ->  | Q8: =IF(OFFSET(Working!$K$15,$F8,0,1,1)=0,NA(),OFFSET(Working!$K$15,$F8,0,1,1)) ->  | R8: =IF(OFFSET(Working!$F$15,$F8,0,1,1)=0,NA(),OFFSET(Working!$F$15,$F8,0,1,1)) ->  | S8: =IF(OFFSET(Working!$H$15,$F8,0,1,1)=0,NA(),OFFSET(Working!$H$15,$F8,0,1,1)) ->  | U8: 3 | W8: =OFFSET(Working!$O$15,$F8,0,1,1) ->  | X8: =OFFSET(Working!$P$15,$F8,0,1,1) ->  | Y8: =IF(OFFSET(Working!$V$15,$F8,0,1,1)=0,NA(),OFFSET(Working!$V$15,$F8,0,1,1)) ->  | Z8: =IF(OFFSET(Working!$Q$15,$F8,0,1,1)=0,NA(),OFFSET(Working!$Q$15,$F8,0,1,1)) ->  | AA8: =IF(OFFSET(Working!$S$15,$F8,0,1,1)=0,NA(),OFFSET(Working!$S$15,$F8,0,1,1)) -> 
E9: 4 | M9: 4 | O9: =OFFSET(Working!$D$15,N9,0,1,1) ->  | P9: =OFFSET(Working!$E$15,$F9,0,1,1) ->  | Q9: =IF(OFFSET(Working!$K$15,$F9,0,1,1)=0,NA(),OFFSET(Working!$K$15,$F9,0,1,1)) ->  | R9: =IF(OFFSET(Working!$F$15,$F9,0,1,1)=0,NA(),OFFSET(Working!$F$15,$F9,0,1,1)) ->  | S9: =IF(OFFSET(Working!$H$15,$F9,0,1,1)=0,NA(),OFFSET(Working!$H$15,$F9,0,1,1)) ->  | U9: 4 | W9: =OFFSET(Working!$O$15,$F9,0,1,1) ->  | X9: =OFFSET(Working!$P$15,$F9,0,1,1) ->  | Y9: =IF(OFFSET(Working!$V$15,$F9,0,1,1)=0,NA(),OFFSET(Working!$V$15,$F9,0,1,1)) ->  | Z9: =IF(OFFSET(Working!$Q$15,$F9,0,1,1)=0,NA(),OFFSET(Working!$Q$15,$F9,0,1,1)) ->  | AA9: =IF(OFFSET(Working!$S$15,$F9,0,1,1)=0,NA(),OFFSET(Working!$S$15,$F9,0,1,1)) -> 
E10: 5 | M10: 5 | O10: =OFFSET(Working!$D$15,N10,0,1,1) ->  | P10: =OFFSET(Working!$E$15,$F10,0,1,1) ->  | Q10: =IF(OFFSET(Working!$K$15,$F10,0,1,1)=0,NA(),OFFSET(Working!$K$15,$F10,0,1,1)) ->  | R10: =IF(OFFSET(Working!$F$15,$F10,0,1,1)=0,NA(),OFFSET(Working!$F$15,$F10,0,1,1)) ->  | S10: =IF(OFFSET(Working!$H$15,$F10,0,1,1)=0,NA(),OFFSET(Working!$H$15,$F10,0,1,1)) ->  | U10: 5 | W10: =OFFSET(Working!$O$15,$F10,0,1,1) ->  | X10: =OFFSET(Working!$P$15,$F10,0,1,1) ->  | Y10: =IF(OFFSET(Working!$V$15,$F10,0,1,1)=0,NA(),OFFSET(Working!$V$15,$F10,0,1,1)) ->  | Z10: =IF(OFFSET(Working!$Q$15,$F10,0,1,1)=0,NA(),OFFSET(Working!$Q$15,$F10,0,1,1)) ->  | AA10: =IF(OFFSET(Working!$S$15,$F10,0,1,1)=0,NA(),OFFSET(Working!$S$15,$F10,0,1,1)) -> 
E11: 6 | M11: 6 | O11: =OFFSET(Working!$D$15,N11,0,1,1) ->  | P11: =OFFSET(Working!$E$15,$F11,0,1,1) ->  | Q11: =IF(OFFSET(Working!$K$15,$F11,0,1,1)=0,NA(),OFFSET(Working!$K$15,$F11,0,1,1)) ->  | R11: =IF(OFFSET(Working!$F$15,$F11,0,1,1)=0,NA(),OFFSET(Working!$F$15,$F11,0,1,1)) ->  | S11: =IF(OFFSET(Working!$H$15,$F11,0,1,1)=0,NA(),OFFSET(Working!$H$15,$F11,0,1,1)) ->  | U11: 6 | W11: =OFFSET(Working!$O$15,$F11,0,1,1) ->  | X11: =OFFSET(Working!$P$15,$F11,0,1,1) ->  | Y11: =IF(OFFSET(Working!$V$15,$F11,0,1,1)=0,NA(),OFFSET(Working!$V$15,$F11,0,1,1)) ->  | Z11: =IF(OFFSET(Working!$Q$15,$F11,0,1,1)=0,NA(),OFFSET(Working!$Q$15,$F11,0,1,1)) ->  | AA11: =IF(OFFSET(Working!$S$15,$F11,0,1,1)=0,NA(),OFFSET(Working!$S$15,$F11,0,1,1)) -> 
E12: 7 | M12: 7 | O12: =OFFSET(Working!$D$15,N12,0,1,1) ->  | P12: =OFFSET(Working!$E$15,$F12,0,1,1) ->  | Q12: =IF(OFFSET(Working!$K$15,$F12,0,1,1)=0,NA(),OFFSET(Working!$K$15,$F12,0,1,1)) ->  | R12: =IF(OFFSET(Working!$F$15,$F12,0,1,1)=0,NA(),OFFSET(Working!$F$15,$F12,0,1,1)) ->  | S12: =IF(OFFSET(Working!$H$15,$F12,0,1,1)=0,NA(),OFFSET(Working!$H$15,$F12,0,1,1)) ->  | U12: 7 | W12: =OFFSET(Working!$O$15,$F12,0,1,1) ->  | X12: =OFFSET(Working!$P$15,$F12,0,1,1) ->  | Y12: =IF(OFFSET(Working!$V$15,$F12,0,1,1)=0,NA(),OFFSET(Working!$V$15,$F12,0,1,1)) ->  | Z12: =IF(OFFSET(Working!$Q$15,$F12,0,1,1)=0,NA(),OFFSET(Working!$Q$15,$F12,0,1,1)) ->  | AA12: =IF(OFFSET(Working!$S$15,$F12,0,1,1)=0,NA(),OFFSET(Working!$S$15,$F12,0,1,1)) -> 
E13: 8 | M13: 8 | O13: =OFFSET(Working!$D$15,N13,0,1,1) ->  | P13: =OFFSET(Working!$E$15,$F13,0,1,1) ->  | Q13: =IF(OFFSET(Working!$K$15,$F13,0,1,1)=0,NA(),OFFSET(Working!$K$15,$F13,0,1,1)) ->  | R13: =IF(OFFSET(Working!$F$15,$F13,0,1,1)=0,NA(),OFFSET(Working!$F$15,$F13,0,1,1)) ->  | S13: =IF(OFFSET(Working!$H$15,$F13,0,1,1)=0,NA(),OFFSET(Working!$H$15,$F13,0,1,1)) ->  | U13: 8 | W13: =OFFSET(Working!$O$15,$F13,0,1,1) ->  | X13: =OFFSET(Working!$P$15,$F13,0,1,1) ->  | Y13: =IF(OFFSET(Working!$V$15,$F13,0,1,1)=0,NA(),OFFSET(Working!$V$15,$F13,0,1,1)) ->  | Z13: =IF(OFFSET(Working!$Q$15,$F13,0,1,1)=0,NA(),OFFSET(Working!$Q$15,$F13,0,1,1)) ->  | AA13: =IF(OFFSET(Working!$S$15,$F13,0,1,1)=0,NA(),OFFSET(Working!$S$15,$F13,0,1,1)) -> 
E14: 9 | M14: 9 | O14: =OFFSET(Working!$D$15,N14,0,1,1) ->  | P14: =OFFSET(Working!$E$15,$F14,0,1,1) ->  | Q14: =IF(OFFSET(Working!$K$15,$F14,0,1,1)=0,NA(),OFFSET(Working!$K$15,$F14,0,1,1)) ->  | R14: =IF(OFFSET(Working!$F$15,$F14,0,1,1)=0,NA(),OFFSET(Working!$F$15,$F14,0,1,1)) ->  | S14: =IF(OFFSET(Working!$H$15,$F14,0,1,1)=0,NA(),OFFSET(Working!$H$15,$F14,0,1,1)) ->  | U14: 9 | W14: =OFFSET(Working!$O$15,$F14,0,1,1) ->  | X14: =OFFSET(Working!$P$15,$F14,0,1,1) ->  | Y14: =IF(OFFSET(Working!$V$15,$F14,0,1,1)=0,NA(),OFFSET(Working!$V$15,$F14,0,1,1)) ->  | Z14: =IF(OFFSET(Working!$Q$15,$F14,0,1,1)=0,NA(),OFFSET(Working!$Q$15,$F14,0,1,1)) ->  | AA14: =IF(OFFSET(Working!$S$15,$F14,0,1,1)=0,NA(),OFFSET(Working!$S$15,$F14,0,1,1)) -> 
E15: 10 | M15: 10 | O15: =OFFSET(Working!$D$15,N15,0,1,1) ->  | P15: =OFFSET(Working!$E$15,$F15,0,1,1) ->  | Q15: =IF(OFFSET(Working!$K$15,$F15,0,1,1)=0,NA(),OFFSET(Working!$K$15,$F15,0,1,1)) ->  | R15: =IF(OFFSET(Working!$F$15,$F15,0,1,1)=0,NA(),OFFSET(Working!$F$15,$F15,0,1,1)) ->  | S15: =IF(OFFSET(Working!$H$15,$F15,0,1,1)=0,NA(),OFFSET(Working!$H$15,$F15,0,1,1)) ->  | U15: 10 | W15: =OFFSET(Working!$O$15,$F15,0,1,1) ->  | X15: =OFFSET(Working!$P$15,$F15,0,1,1) ->  | Y15: =IF(OFFSET(Working!$V$15,$F15,0,1,1)=0,NA(),OFFSET(Working!$V$15,$F15,0,1,1)) ->  | Z15: =IF(OFFSET(Working!$Q$15,$F15,0,1,1)=0,NA(),OFFSET(Working!$Q$15,$F15,0,1,1)) ->  | AA15: =IF(OFFSET(Working!$S$15,$F15,0,1,1)=0,NA(),OFFSET(Working!$S$15,$F15,0,1,1)) -> 
E16: 11 | M16: 11 | O16: =OFFSET(Working!$D$15,N16,0,1,1) ->  | P16: =OFFSET(Working!$E$15,$F16,0,1,1) ->  | Q16: =IF(OFFSET(Working!$K$15,$F16,0,1,1)=0,NA(),OFFSET(Working!$K$15,$F16,0,1,1)) ->  | R16: =IF(OFFSET(Working!$F$15,$F16,0,1,1)=0,NA(),OFFSET(Working!$F$15,$F16,0,1,1)) ->  | S16: =IF(OFFSET(Working!$H$15,$F16,0,1,1)=0,NA(),OFFSET(Working!$H$15,$F16,0,1,1)) ->  | U16: 11 | W16: =OFFSET(Working!$O$15,$F16,0,1,1) ->  | X16: =OFFSET(Working!$P$15,$F16,0,1,1) ->  | Y16: =IF(OFFSET(Working!$V$15,$F16,0,1,1)=0,NA(),OFFSET(Working!$V$15,$F16,0,1,1)) ->  | Z16: =IF(OFFSET(Working!$Q$15,$F16,0,1,1)=0,NA(),OFFSET(Working!$Q$15,$F16,0,1,1)) ->  | AA16: =IF(OFFSET(Working!$S$15,$F16,0,1,1)=0,NA(),OFFSET(Working!$S$15,$F16,0,1,1)) -> 
E17: 12 | M17: 12 | O17: =OFFSET(Working!$D$15,N17,0,1,1) ->  | P17: =OFFSET(Working!$E$15,$F17,0,1,1) ->  | Q17: =IF(OFFSET(Working!$K$15,$F17,0,1,1)=0,NA(),OFFSET(Working!$K$15,$F17,0,1,1)) ->  | R17: =IF(OFFSET(Working!$F$15,$F17,0,1,1)=0,NA(),OFFSET(Working!$F$15,$F17,0,1,1)) ->  | S17: =IF(OFFSET(Working!$H$15,$F17,0,1,1)=0,NA(),OFFSET(Working!$H$15,$F17,0,1,1)) ->  | U17: 12 | W17: =OFFSET(Working!$O$15,$F17,0,1,1) ->  | X17: =OFFSET(Working!$P$15,$F17,0,1,1) ->  | Y17: =IF(OFFSET(Working!$V$15,$F17,0,1,1)=0,NA(),OFFSET(Working!$V$15,$F17,0,1,1)) ->  | Z17: =IF(OFFSET(Working!$Q$15,$F17,0,1,1)=0,NA(),OFFSET(Working!$Q$15,$F17,0,1,1)) ->  | AA17: =IF(OFFSET(Working!$S$15,$F17,0,1,1)=0,NA(),OFFSET(Working!$S$15,$F17,0,1,1)) -> 
E18: 13 | M18: 13 | O18: =OFFSET(Working!$D$15,N18,0,1,1) ->  | P18: =OFFSET(Working!$E$15,$F18,0,1,1) ->  | Q18: =IF(OFFSET(Working!$K$15,$F18,0,1,1)=0,NA(),OFFSET(Working!$K$15,$F18,0,1,1)) ->  | R18: =IF(OFFSET(Working!$F$15,$F18,0,1,1)=0,NA(),OFFSET(Working!$F$15,$F18,0,1,1)) ->  | S18: =IF(OFFSET(Working!$H$15,$F18,0,1,1)=0,NA(),OFFSET(Working!$H$15,$F18,0,1,1)) ->  | U18: 13 | W18: =OFFSET(Working!$O$15,$F18,0,1,1) ->  | X18: =OFFSET(Working!$P$15,$F18,0,1,1) ->  | Y18: =IF(OFFSET(Working!$V$15,$F18,0,1,1)=0,NA(),OFFSET(Working!$V$15,$F18,0,1,1)) ->  | Z18: =IF(OFFSET(Working!$Q$15,$F18,0,1,1)=0,NA(),OFFSET(Working!$Q$15,$F18,0,1,1)) ->  | AA18: =IF(OFFSET(Working!$S$15,$F18,0,1,1)=0,NA(),OFFSET(Working!$S$15,$F18,0,1,1)) -> 
E19: 14 | M19: 14 | O19: =OFFSET(Working!$D$15,N19,0,1,1) ->  | P19: =OFFSET(Working!$E$15,$F19,0,1,1) ->  | Q19: =IF(OFFSET(Working!$K$15,$F19,0,1,1)=0,NA(),OFFSET(Working!$K$15,$F19,0,1,1)) ->  | R19: =IF(OFFSET(Working!$F$15,$F19,0,1,1)=0,NA(),OFFSET(Working!$F$15,$F19,0,1,1)) ->  | S19: =IF(OFFSET(Working!$H$15,$F19,0,1,1)=0,NA(),OFFSET(Working!$H$15,$F19,0,1,1)) ->  | U19: 14 | W19: =OFFSET(Working!$O$15,$F19,0,1,1) ->  | X19: =OFFSET(Working!$P$15,$F19,0,1,1) ->  | Y19: =IF(OFFSET(Working!$V$15,$F19,0,1,1)=0,NA(),OFFSET(Working!$V$15,$F19,0,1,1)) ->  | Z19: =IF(OFFSET(Working!$Q$15,$F19,0,1,1)=0,NA(),OFFSET(Working!$Q$15,$F19,0,1,1)) ->  | AA19: =IF(OFFSET(Working!$S$15,$F19,0,1,1)=0,NA(),OFFSET(Working!$S$15,$F19,0,1,1)) -> 
E20: 15 | M20: 15 | O20: =OFFSET(Working!$D$15,N20,0,1,1) ->  | P20: =OFFSET(Working!$E$15,$F20,0,1,1) ->  | Q20: =IF(OFFSET(Working!$K$15,$F20,0,1,1)=0,NA(),OFFSET(Working!$K$15,$F20,0,1,1)) ->  | R20: =IF(OFFSET(Working!$F$15,$F20,0,1,1)=0,NA(),OFFSET(Working!$F$15,$F20,0,1,1)) ->  | S20: =IF(OFFSET(Working!$H$15,$F20,0,1,1)=0,NA(),OFFSET(Working!$H$15,$F20,0,1,1)) ->  | U20: 15 | W20: =OFFSET(Working!$O$15,$F20,0,1,1) ->  | X20: =OFFSET(Working!$P$15,$F20,0,1,1) ->  | Y20: =IF(OFFSET(Working!$V$15,$F20,0,1,1)=0,NA(),OFFSET(Working!$V$15,$F20,0,1,1)) ->  | Z20: =IF(OFFSET(Working!$Q$15,$F20,0,1,1)=0,NA(),OFFSET(Working!$Q$15,$F20,0,1,1)) ->  | AA20: =IF(OFFSET(Working!$S$15,$F20,0,1,1)=0,NA(),OFFSET(Working!$S$15,$F20,0,1,1)) -> 
E21: 16 | M21: 16 | O21: =OFFSET(Working!$D$15,N21,0,1,1) ->  | P21: =OFFSET(Working!$E$15,$F21,0,1,1) ->  | Q21: =IF(OFFSET(Working!$K$15,$F21,0,1,1)=0,NA(),OFFSET(Working!$K$15,$F21,0,1,1)) ->  | R21: =IF(OFFSET(Working!$F$15,$F21,0,1,1)=0,NA(),OFFSET(Working!$F$15,$F21,0,1,1)) ->  | S21: =IF(OFFSET(Working!$H$15,$F21,0,1,1)=0,NA(),OFFSET(Working!$H$15,$F21,0,1,1)) ->  | U21: 16 | W21: =OFFSET(Working!$O$15,$F21,0,1,1) ->  | X21: =OFFSET(Working!$P$15,$F21,0,1,1) ->  | Y21: =IF(OFFSET(Working!$V$15,$F21,0,1,1)=0,NA(),OFFSET(Working!$V$15,$F21,0,1,1)) ->  | Z21: =IF(OFFSET(Working!$Q$15,$F21,0,1,1)=0,NA(),OFFSET(Working!$Q$15,$F21,0,1,1)) ->  | AA21: =IF(OFFSET(Working!$S$15,$F21,0,1,1)=0,NA(),OFFSET(Working!$S$15,$F21,0,1,1)) -> 
E22: 17 | M22: 17 | O22: =OFFSET(Working!$D$15,N22,0,1,1) ->  | P22: =OFFSET(Working!$E$15,$F22,0,1,1) ->  | Q22: =IF(OFFSET(Working!$K$15,$F22,0,1,1)=0,NA(),OFFSET(Working!$K$15,$F22,0,1,1)) ->  | R22: =IF(OFFSET(Working!$F$15,$F22,0,1,1)=0,NA(),OFFSET(Working!$F$15,$F22,0,1,1)) ->  | S22: =IF(OFFSET(Working!$H$15,$F22,0,1,1)=0,NA(),OFFSET(Working!$H$15,$F22,0,1,1)) ->  | U22: 17 | W22: =OFFSET(Working!$O$15,$F22,0,1,1) ->  | X22: =OFFSET(Working!$P$15,$F22,0,1,1) ->  | Y22: =IF(OFFSET(Working!$V$15,$F22,0,1,1)=0,NA(),OFFSET(Working!$V$15,$F22,0,1,1)) ->  | Z22: =IF(OFFSET(Working!$Q$15,$F22,0,1,1)=0,NA(),OFFSET(Working!$Q$15,$F22,0,1,1)) ->  | AA22: =IF(OFFSET(Working!$S$15,$F22,0,1,1)=0,NA(),OFFSET(Working!$S$15,$F22,0,1,1)) -> 
E23: 18 | M23: 18 | O23: =OFFSET(Working!$D$15,N23,0,1,1) ->  | P23: =OFFSET(Working!$E$15,$F23,0,1,1) ->  | Q23: =IF(OFFSET(Working!$K$15,$F23,0,1,1)=0,NA(),OFFSET(Working!$K$15,$F23,0,1,1)) ->  | R23: =IF(OFFSET(Working!$F$15,$F23,0,1,1)=0,NA(),OFFSET(Working!$F$15,$F23,0,1,1)) ->  | S23: =IF(OFFSET(Working!$H$15,$F23,0,1,1)=0,NA(),OFFSET(Working!$H$15,$F23,0,1,1)) ->  | U23: 18 | W23: =OFFSET(Working!$O$15,$F23,0,1,1) ->  | X23: =OFFSET(Working!$P$15,$F23,0,1,1) ->  | Y23: =IF(OFFSET(Working!$V$15,$F23,0,1,1)=0,NA(),OFFSET(Working!$V$15,$F23,0,1,1)) ->  | Z23: =IF(OFFSET(Working!$Q$15,$F23,0,1,1)=0,NA(),OFFSET(Working!$Q$15,$F23,0,1,1)) ->  | AA23: =IF(OFFSET(Working!$S$15,$F23,0,1,1)=0,NA(),OFFSET(Working!$S$15,$F23,0,1,1)) -> 
E24: 19 | M24: 19 | O24: =OFFSET(Working!$D$15,N24,0,1,1) ->  | P24: =OFFSET(Working!$E$15,$F24,0,1,1) ->  | Q24: =IF(OFFSET(Working!$K$15,$F24,0,1,1)=0,NA(),OFFSET(Working!$K$15,$F24,0,1,1)) ->  | R24: =IF(OFFSET(Working!$F$15,$F24,0,1,1)=0,NA(),OFFSET(Working!$F$15,$F24,0,1,1)) ->  | S24: =IF(OFFSET(Working!$H$15,$F24,0,1,1)=0,NA(),OFFSET(Working!$H$15,$F24,0,1,1)) ->  | U24: 19 | W24: =OFFSET(Working!$O$15,$F24,0,1,1) ->  | X24: =OFFSET(Working!$P$15,$F24,0,1,1) ->  | Y24: =IF(OFFSET(Working!$V$15,$F24,0,1,1)=0,NA(),OFFSET(Working!$V$15,$F24,0,1,1)) ->  | Z24: =IF(OFFSET(Working!$Q$15,$F24,0,1,1)=0,NA(),OFFSET(Working!$Q$15,$F24,0,1,1)) ->  | AA24: =IF(OFFSET(Working!$S$15,$F24,0,1,1)=0,NA(),OFFSET(Working!$S$15,$F24,0,1,1)) -> 
E25: 20 | M25: 20 | O25: =OFFSET(Working!$D$15,N25,0,1,1) ->  | P25: =OFFSET(Working!$E$15,$F25,0,1,1) ->  | Q25: =IF(OFFSET(Working!$K$15,$F25,0,1,1)=0,NA(),OFFSET(Working!$K$15,$F25,0,1,1)) ->  | R25: =IF(OFFSET(Working!$F$15,$F25,0,1,1)=0,NA(),OFFSET(Working!$F$15,$F25,0,1,1)) ->  | S25: =IF(OFFSET(Working!$H$15,$F25,0,1,1)=0,NA(),OFFSET(Working!$H$15,$F25,0,1,1)) ->  | U25: 20 | W25: =OFFSET(Working!$O$15,$F25,0,1,1) ->  | X25: =OFFSET(Working!$P$15,$F25,0,1,1) ->  | Y25: =IF(OFFSET(Working!$V$15,$F25,0,1,1)=0,NA(),OFFSET(Working!$V$15,$F25,0,1,1)) ->  | Z25: =IF(OFFSET(Working!$Q$15,$F25,0,1,1)=0,NA(),OFFSET(Working!$Q$15,$F25,0,1,1)) ->  | AA25: =IF(OFFSET(Working!$S$15,$F25,0,1,1)=0,NA(),OFFSET(Working!$S$15,$F25,0,1,1)) -> 
E27: Text Box Content
E28: ="Day "&Selected_Day -> Day 1
E29: ="Demand: "&VLOOKUP(Selected_Day,$F$6:$G$25,2,0)&" units" -> Demand: 100 units
E30: ="Opening Stock: "&VLOOKUP(Selected_Day,$F$6:$H$25,3,0)&" units" -> Opening Stock: 500 units
E31: =IFERROR("Stock In-Transit: "&VLOOKUP(Selected_Day,$F$6:$K$25,6,0)&" units","") -> 
E32: Order Placed Text Box
E33: =IF(_xlfn.IFNA(F33,"NA")="NA","","Order Placed: "&F33&" units") -> Order Placed: 500 units | F33: =VLOOKUP(Selected_Day,$F$6:$I$25,4,0) -> 500
E34: Stock Received Text Box
E35: =IF(_xlfn.IFNA(F35,"NA")="NA","","Stock Received: "&F35&" units") ->  | F35: =VLOOKUP(Selected_Day,$F$6:$J$25,5,0) -> 
